Workbook

Sheet Bench 1-C Gas
B1: Puget Sound Energy
B2: Total Gas Utility Revenue Requirement Change Amounts in $000
B4: Component from JAP-45 | C4: PSE | D4: Public Counsel Adjusted | E4: Reference
B7: Schedule 141 ERF Revenue Removal | C7: 2074 | E7: Note A
B8: Schedule 142 Decoupling Revenue Removal | C8: -77217 | E8: Note A
B9: Schedule 142 Decoupling (Deferral) | C9: 34844 | E9: Note A
B10: Schedule 149 Gas CRM | C10: -11799 | E10: Note A
B11: Subtotal | C11: =SUM(C7:C10) -> -52098 | D11: =C11 -> -52098
B12: Base Revenue Change | C12: 22814 | D12: -13534 | E12: Exhibit RCS-4
B13: Net Revenue Change | C13: =SUM(C11:C12) -> -29284 | D13: =SUM(D11:D12) -> -65632
B15: Note A: Public Counsel witness Smith is not contesting these amounts
B18: Net Revenue Change Check number | C18: -29284
B19: Difference | C19: =C13-C18 -> 0

Sheet Bench 1-C Electric
B1: Puget Sound Energy
B2: Total Electric Utility Revenue Requirement Change Amounts in $000
B4: Component from JAP-44 | C4: PSE | D4: Public Counsel Adjusted | E4: Reference
B6: Subtotal Rider Rates | C6: 170222.334 | E6: Note A
B8: Schedule 95 PCORC | C8: 65843 | E8: Note A
B9: Schedule 141 ERF | C9: -29746 | E9: Note A
B10: Schedule 142 Rate Plan, Deferral & K-Factor | C10: -143380.334 | E10: Note A
B11: Schedule 142 Decoupling (Deferral) | C11: 21075.112 | E11: Note A
B12: Schedule 149 Electric CRM | C12: 10479 | E12: Note A
B13: Subtotal | C13: =SUM(C8:C12) -> -75729.222 | D13: =C13 -> -75729.222
B14: Base Revenue Change | C14: 144030.254 | D14: 70326 | E14: Exhibit RCS-3
B15: Net Revenue Change | C15: =SUM(C13:C14) -> 68301.032 | D15: =SUM(D13:D14) -> -5403.222
B17: Note A: Public Counsel witness Smith is not contesting these amounts
B20: Net Revenue Change Check number | C20: 68301.032
B21: Difference | C21: =C15-C20 -> 0

Sheet GRC Impacts
A1: Puget Sound Energy
A2: GRC Rate Impacts
A3: Test Year ended September 2016
A4: $ x 1000
S6: Remove: | V6: Add:
A7: Line No. | B7: Tariff | C7: Annual mWh Delivered Sales YE 9-2016 | D7: Estimated Annual Proforma Base Revenue | E7: Schedule 95 PCORC | F7: Schedule 95A Federal Incentive Credit | G7: Schedule 120 Conservation | H7: Schedule 129 Low Income | I7: Schedule 132 Merger Credit | J7: Schedule 140 Property Tax | K7: Schedule 141 ERF | L7: Schedule 142 Rate Plan, Deferral & K-Factor | M7: Schedule 194 BPA Res & Farm Credit | N7: Subtotal Rider Rates | O7: Annual Estimated Revenue @ Rates Effective 12/31/2016 | Q7: Estimated Annual Proposed Base Revenue | R7: Subtotal Rider Rates | S7: =+E7 -> Schedule 95 PCORC | T7: =+K7 -> Schedule 141 ERF | U7: =+L7 -> Schedule 142 Rate Plan, Deferral & K-Factor | V7: Schedule 142 Decoupling (Deferral) | W7: Schedule 149 Electric CRM | X7: Total Proposed Rates | Y7: Base Revenue Change | Z7: Net Revenue Change | AA7: % Change (Base) | AB7: % Change (Net)
C8: a | D8: b | E8: c | F8: d | G8: e | H8: f | I8: g | J8: h | K8: i | L8: j | M8: k | N8: l = ∑ (c…k) | O8: m = b + l | Q8: n | R8: o = l | S8: p = -c | T8: q = - i | U8: r = -j | V8: s | W8: t | X8: u = ∑ (n…t) | Y8: v = m - b | Z8: w = u - m | AA8: x = v / b | AB8: y = w / m
A9: 1 | B9: 7 | C9: 10442426 | D9: 1066627 | E9: -34802 | F9: -28894 | G9: 63438 | H9: 9534 | I9: -3822 | J9: 37071 | K9: 16991 | L9: 96112 | M9: -69308 | N9: =SUM(E9:M9) -> 86320 | O9: =SUM(N9,D9) -> 1152947 | Q9: 1153702 | R9: =+N9 -> 86320 | S9: =-E9 -> 34802 | T9: =-K9 -> -16991 | U9: =-L9 -> -96112 | V9: 12541 | W9: 8396 | X9: =SUM(Q9:W9) -> 1182658 | Y9: =+Q9-D9 -> 87075 | Z9: =+X9-O9 -> 29711 | AA9: =+Y9/D9 -> 0.08163584833 | AB9: =+Z9/O9 -> 0.02576961474
A10: =+A9+1 -> 2 | B10: Residential | C10: =SUM(C9:C9) -> 10442426 | D10: 1066627 | E10: -34802 | F10: -28894 | G10: 63438 | H10: 9534 | I10: -3822 | J10: 37071 | K10: 16991 | L10: 96112 | M10: -69308 | N10: 86320 | O10: 1152947 | Q10: =SUM(Q9:Q9) -> 1153702 | R10: 86320 | S10: 34802 | T10: -16991 | U10: -96112 | V10: 12541 | W10: =SUM(W9:W9) -> 8396 | X10: 1182658 | Y10: 87075 | Z10: 29711 | AA10: =+Y10/D10 -> 0.08163584833 | AB10: =+Z10/O10 -> 0.02576961474
A11: =+A10+1 -> 3
A12: 4 | B12: 24 (8) | C12: 2787459 | D12: 266944 | E12: -8568 | F12: -5915 | G12: 12937 | H12: 2328 | I12: -741 | J12: 6985 | K12: 4339 | L12: 14372 | M12: -1738 | N12: =SUM(E12:M12) -> 23999 | O12: =SUM(N12,D12) -> 290943 | Q12: 283287 | R12: =+N12 -> 23999 | S12: =-E12 -> 8568 | T12: =-K12 -> -4339 | U12: -14372 | V12: 3721 | W12: 1143 | X12: =SUM(Q12:W12) -> 302007 | Y12: =+Q12-D12 -> 16343 | Z12: =+X12-O12 -> 11064 | AA12: =+Y12/D12 -> 0.06122257852 | AB12: =+Z12/O12 -> 0.03802806735
A13: 5 | B13: 25 (11, 7A) | C13: 2830899 | D13: 251785 | E13: -8670 | F13: -5826 | G13: 12736 | H13: 2200 | I13: -679 | J13: 6460 | K13: 3524 | L13: 14596 | M13: -1030 | N13: =SUM(E13:M13) -> 23311 | O13: =SUM(N13,D13) -> 275096 | Q13: 267201 | R13: 23311 | S13: =-E13 -> 8670 | T13: -3524 | U13: -14596 | V13: 3779 | W13: 564 | X13: =SUM(Q13:W13) -> 285405 | Y13: =+Q13-D13 -> 15416 | Z13: =+X13-O13 -> 10309 | AA13: 0.06122684036 | AB13: 0.03747419083 | AE13: =SUM(Z12,Z14)/SUM(O12,O14) -> 0.0405988569
A14: 6 | B14: 26 (12,26P) | C14: 1867682 | D14: 151835 | E14: -5900 | F14: -4072 | G14: 8965 | H14: 1326 | I14: -390 | J14: 4055 | K14: 1962 | L14: 5275.385 | M14: -117 | N14: =SUM(E14:M14) -> 11104.385 | O14: =SUM(N14,D14) -> 162939.385 | Q14: 161130 | R14: 11104.385 | S14: =-E14 -> 5900 | T14: -1962 | U14: -5275.385 | V14: -766.509 | W14: 172 | X14: =SUM(Q14:W14) -> 170302.491 | Y14: =+Q14-D14 -> 9295 | Z14: =+X14-O14 -> 7363.106 | AA14: 0.06121776929 | AB14: 0.04518923402
A15: 7 | B15: 29 | C15: 14327 | D15: 1137.746 | E15: -41 | F15: -30 | G15: 66 | H15: 10 | I15: -3 | J15: 33 | K15: 19 | L15: 74 | M15: -98 | N15: =SUM(E15:M15) -> 30 | O15: =SUM(N15,D15) -> 1167.746 | Q15: 1207 | R15: 30 | S15: =-E15 -> 41 | T15: -19 | U15: -74 | V15: 19 | W15: 0 | X15: =SUM(Q15:W15) -> 1204 | Y15: =+Q15-D15 -> 69.254 | Z15: =+X15-O15 -> 36.254 | AA15: 0.0608694735 | AB15: 0.03104613503
A16: 8 | B16: Total Secondary | C16: =SUM(C12:C15) -> 7500367 | D16: 671701.746 | E16: -23179 | F16: -15843 | G16: 34704 | H16: 5864 | I16: -1813 | J16: 17533 | K16: 9844 | L16: 34317.385 | M16: -2983 | N16: 58444.385 | O16: 730146.131 | Q16: =SUM(Q12:Q15) -> 712825 | R16: 58444.385 | S16: 23179 | T16: -9844 | U16: -34317.385 | V16: 6752.491 | W16: =SUM(W12:W15) -> 1879 | X16: 758918.491 | Y16: 41123.254 | Z16: 28772.36 | AA16: 0.06122249085 | AB16: 0.03940630345
A17: 9
A18: 10 | B18: 31 (10) | C18: 1264534 | D18: 101395 | E18: -3618 | F18: -2611 | G18: 5756 | H18: 891 | I18: -296 | J18: 2735 | K18: 1345 | L18: 3654.949 | M18: -218 | N18: =SUM(E18:M18) -> 7638.949 | O18: =SUM(N18,D18) -> 109033.949 | Q18: 107602 | R18: =+N18 -> 7638.949 | S18: =-E18 -> 3618 | T18: =-K18 -> -1345 | U18: -3654.949 | V18: -129.379 | W18: 78 | X18: =SUM(Q18:W18) -> 113807.621 | Y18: =+Q18-D18 -> 6207 | Z18: =+X18-O18 -> 4773.672 | AA18: =+Y18/D18 -> 0.06121603629 | AB18: =+Z18/O18 -> 0.04378151983
A19: 11 | B19: 35 | C19: 4453 | D19: 248 | E19: -11 | F19: -6 | G19: 14 | H19: 4 | I19: -1 | J19: 10 | K19: 0 | L19: 23 | M19: -30 | N19: =SUM(E19:M19) -> 3 | O19: =SUM(N19,D19) -> 251 | Q19: 263 | R19: 3 | S19: =-E19 -> 11 | T19: 0 | U19: -23 | V19: 6 | W19: 0 | X19: =SUM(Q19:W19) -> 260 | Y19: =+Q19-D19 -> 15 | Z19: =+X19-O19 -> 9 | AA19: 0.06048387097 | AB19: 0.03585657371 | AD19: =SUM(Y18:Y19)/SUM(D18:D19) -> 0.06121424987 | AE19: =SUM(Z18:Z19)/SUM(O18:O19) -> 0.04376331822
A20: 12 | B20: 43 | C20: 119660 | D20: 10338 | E20: -336 | F20: -232 | G20: 509 | H20: 93 | I20: -28 | J20: 443 | K20: 206 | L20: 617 | M20: 0 | N20: =SUM(E20:M20) -> 1272 | O20: =SUM(N20,D20) -> 11610 | Q20: 11182 | R20: 1272 | S20: =-E20 -> 336 | T20: -206 | U20: -617 | V20: 160 | W20: 121 | X20: =SUM(Q20:W20) -> 12248 | Y20: =+Q20-D20 -> 844 | Z20: =+X20-O20 -> 638 | AA20: 0.08164054943 | AB20: 0.05495262705
A21: 13 | B21: Total Primary | C21: =SUM(C18:C20) -> 1388647 | D21: 111981 | E21: -3965 | F21: -2849 | G21: 6279 | H21: 988 | I21: -325 | J21: 3188 | K21: 1551 | L21: 4294.949 | M21: -248 | N21: 8913.949 | O21: 120894.949 | Q21: =SUM(Q18:Q20) -> 119047 | R21: 8913.949 | S21: 3965 | T21: -1551 | U21: -4294.949 | V21: 36.621 | W21: =SUM(W18:W20) -> 199 | X21: 126315.621 | Y21: 7066 | Z21: 5420.672 | AA21: 0.06309999018 | AB21: 0.04483786994
A22: 14
A23: 15 | B23: 40 | C23: 674604 | D23: 47837 | E23: -2137 | F23: -1579 | G23: 3469 | H23: 414 | I23: -87 | J23: 1560 | K23: 319 | L23: 3479 | M23: 0 | N23: =SUM(E23:M23) -> 5438 | O23: =SUM(N23,D23) -> 53275 | Q23: 51873 | R23: =+N23 -> 5438 | S23: =-E23 -> 2137 | T23: =-K23 -> -319 | U23: =-L23 -> -3479 | V23: 901 | W23: 0 | X23: =SUM(Q23:W23) -> 56551 | Y23: =+Q23-D23 -> 4036 | Z23: =+X23-O23 -> 3276 | AA23: =+Y23/D23 -> 0.08436983925 | AB23: =+Z23/O23 -> 0.06149225716
A24: 16
A25: 17 | B25: 46 | C25: 64275 | D25: 4202 | E25: -172 | F25: -85 | G25: 187 | H25: 39 | I25: -5 | J25: 94 | K25: 20 | L25: 332 | M25: 0 | N25: =SUM(E25:M25) -> 410 | O25: =SUM(N25,D25) -> 4612 | Q25: 4460 | R25: =+N25 -> 410 | S25: =-E25 -> 172 | T25: =-K25 -> -20 | U25: =-L25 -> -332 | V25: 86 | W25: 0 | X25: =SUM(Q25:W25) -> 4776 | Y25: =+Q25-D25 -> 258 | Z25: =+X25-O25 -> 164 | AA25: =+Y25/D25 -> 0.06139933365 | AB25: =+Z25/O25 -> 0.03555941023
A26: 18 | B26: 49 | C26: 567984 | D26: 36158 | E26: -1325 | F26: -1143 | G26: 2514 | H26: 318 | I26: -48 | J26: 830 | K26: 201 | L26: 2928 | M26: 0 | N26: =SUM(E26:M26) -> 4275 | O26: =SUM(N26,D26) -> 40433 | Q26: 38371 | R26: 4275 | S26: =-E26 -> 1325 | T26: =-K26 -> -201 | U26: =-L26 -> -2928 | V26: 758 | W26: 0 | X26: =SUM(Q26:W26) -> 41600 | Y26: =+Q26-D26 -> 2213 | Z26: =+X26-O26 -> 1167 | AA26: 0.06120360639 | AB26: 0.02886256276
A27: 19 | B27: Total High Voltage | C27: =SUM(C25:C26) -> 632259 | D27: =SUM(D25:D26) -> 40360 | E27: =SUM(E25:E26) -> -1497 | F27: -1228 | G27: =SUM(G25:G26) -> 2701 | H27: 357 | I27: -53 | J27: =SUM(J25:J26) -> 924 | K27: =SUM(K25:K26) -> 221 | L27: 3260 | M27: =SUM(M25:M26) -> 0 | N27: =SUM(N25:N26) -> 4685 | O27: 45045 | Q27: =SUM(Q25:Q26) -> 42831 | R27: 4685 | S27: 1497 | T27: -221 | U27: -3260 | V27: 844 | W27: =SUM(W25:W26) -> 0 | X27: 46376 | Y27: =SUM(Y25:Y26) -> 2471 | Z27: 1331 | AA27: 0.06122398414 | AB27: 0.02954822955
A28: 20
A29: 21 | B29: 50-59 | C29: 77972 | D29: 17167 | E29: -241 | F29: -220 | G29: 489 | H29: 154 | I29: -120 | J29: 784 | K29: 611 | L29: 1738 | M29: -13 | N29: =SUM(E29:M29) -> 3182 | O29: =SUM(N29,D29) -> 20349 | Q29: 18569 | R29: =+N29 -> 3182 | S29: =-E29 -> 241 | T29: =-K29 -> -611 | U29: =-L29 -> -1738 | V29: 0 | W29: 5 | X29: =SUM(Q29:W29) -> 19648 | Y29: =+Q29-D29 -> 1402 | Z29: =+X29-O29 -> -701 | AA29: =+Y29/D29 -> 0.08166831712 | AB29: =+Z29/O29 -> -0.03444886727
A30: 22
A31: 23 | B31: 449-459 | C31: 2098104 | D31: 7513 | E31: 0 | F31: 0 | G31: 2270 | H31: 67 | I31: -65 | J31: 619 | K31: 209 | L31: 179 | M31: 0 | N31: =SUM(E31:M31) -> 3279 | O31: =SUM(N31,D31) -> 10792 | Q31: 7964 | R31: =+N31 -> 3279 | S31: =-E31 -> 0 | T31: =-K31 -> -209 | U31: =-L31 -> -179 | V31: 0 | W31: 0 | X31: =SUM(Q31:W31) -> 10855 | Y31: =+Q31-D31 -> 451 | Z31: =+X31-O31 -> 63 | AA31: =+Y31/D31 -> 0.06002928258 | AB31: =+Z31/O31 -> 0.005837657524
A32: 24
A33: 25 | B33: Total | C33: =SUM(C10,C16,C21,C23,C27,C29,C31) -> 22814379 | D33: 1963186.746 | E33: -65821 | F33: -50613 | G33: 113350 | H33: 17378 | I33: -6285 | J33: 61679 | K33: 29746 | L33: 143380.334 | M33: -72552 | N33: 170262.334 | O33: 2133449.08 | Q33: =SUM(Q10,Q16,Q21,Q23,Q27,Q29,Q31) -> 2106811 | R33: 170262.334 | S33: 65821 | T33: -29746 | U33: -143380.334 | V33: 21075.112 | W33: =SUM(W10,W16,W21,W23,W27,W29,W31) -> 10479 | X33: 2201322.112 | Y33: =SUM(Y10,Y16,Y21,Y23,Y27,Y29,Y31) -> 143624.254 | Z33: 67873.032 | AA33: =+Y33/D33 -> 0.0731587325 | AB33: =+Z33/O33 -> 0.03181375765
A34: 26
A35: 27 | B35: 5 | C35: 6930 | D35: 316 | E35: -22 | F35: -18 | G35: 0 | H35: 0 | I35: 0 | J35: 0 | K35: 0 | L35: 0 | M35: 0 | N35: =SUM(E35:M35) -> -40 | O35: =SUM(N35,D35) -> 276 | Q35: 722 | R35: =+N35 -> -40 | S35: =-E35 -> 22 | T35: =-K35 -> 0 | U35: =-L35 -> 0 | V35: 0 | W35: 0 | X35: =SUM(Q35:W35) -> 704 | Y35: =+Q35-D35 -> 406 | Z35: =+X35-O35 -> 428 | AA35: =+Y35/D35 -> 1.284810127 | AB35: =+Z35/O35 -> 1.550724638
A36: 28
A37: 29 | B37: All Sales | C37: =+C35+C33 -> 22821309 | D37: =+D35+D33 -> 1963502.746 | E37: =+E35+E33 -> -65843 | F37: -50631 | G37: =+G35+G33 -> 113350 | H37: 17378 | I37: -6285 | J37: =+J35+J33 -> 61679 | K37: =+K35+K33 -> 29746 | L37: 143380.334 | M37: =+M35+M33 -> -72552 | N37: =+N35+N33 -> 170222.334 | O37: 2133725.08 | Q37: =+Q35+Q33 -> 2107533 | R37: 170222.334 | S37: 65843 | T37: -29746 | U37: -143380.334 | V37: 21075.112 | W37: =+W35+W33 -> 10479 | X37: 2202026.112 | Y37: =+Y35+Y33 -> 144030.254 | Z37: 68301.032 | AA37: =+Y37/D37 -> 0.07335373189 | AB37: =+Z37/O37 -> 0.03201023067
C39: 22821309.34 | D39: 1963502.709 | E39: -65843 | F39: -50631 | G39: 113350 | H39: 17378 | I39: -6285 | J39: 61679 | K39: 29746 | L39: 143380.334 | M39: -72552 | Q39: 2107532 | V39: 21075.112 | W39: 10479.212 | Y39: 144029.1669
C40: =+C39-C37 -> 0.3397734277 | D40: -0.03687005909 | E40: 0 | F40: 0 | G40: 0 | H40: 0 | I40: =+I39-I37 -> 0 | J40: 0 | K40: 0 | L40: 0 | M40: 0 | Q40: =+Q39-Q37 -> -1 | V40: =+V39-V37 -> 0 | W40: =+W39-W37 -> 0.212 | Y40: =+Y39-Y37 -> -1.087070141
S43: =S37 -> 65843 | T43: =T37 -> -29746 | U43: -143380.334 | V43: 21075.112 | W43: 10479 | X43: =SUM(R43:W43) -> -75729.222
Y45: =Y37 -> 144030.254 | Z45: =Z37 -> 68301.032 | AA45: =Z45-Y45 -> -75729.222

Sheet Exhibit No.__(JAP-Sch 7 Imp)
B1: Puget Sound Energy | U1: Puget Sound Energy
B2: Monthly Billing Comparison | U2: Monthly Billing Comparison
B3: Schedule 7 | U3: Schedule 7
B4: Residential Service | U4: Residential Service
F6: Monthly Energy Charge 1 | Y6: Monthly Energy Charge 1
D7: % | J7: Change | W7: % | AC7: Change
B8: kWh | D8: Customers | F8: Present | H8: Proposed | J8: $ | L8: % | O8: Present Price (Net) | Q8: Proposed Price (Net) | U8: kWh | W8: Customers | Y8: Present | AA8: Proposed | AC8: $ | AE8: % | AH8: Present Price (Net) | AJ8: Proposed Price (Net)
B9: 0 | D9: =+W9 -> 0.005741984898 | F9: =ROUND((($B9*O$11+$O$9)),2) -> 7.87 | H9: =ROUND((($B9*Q$11+$Q$9)),2) -> 9 | J9: =H9-F9 -> 1.13 | L9: =(H9-F9)/F9 -> 0.1435832274 | N9: Basic 1 Phase | O9: =SUM(O17,O30) -> 7.87 | Q9: =SUM(Q17,Q30) -> 9 | S9: =(Q9-O9)/O9 -> 0.1435832274 | U9: 0 | W9: 0.005741984898 | Y9: =ROUND((($U9*AH$11+$AH$9)),2) -> 7.87 | AA9: =(ROUND((($U9*AJ$11+$AJ$9)),2)) -> 9 | AC9: =AA9-Y9 -> 1.13 | AE9: =(AA9-Y9)/Y9 -> 0.1435832274 | AG9: Basic 1 Phase | AH9: =SUM(AH17,AH30) -> 7.87 | AJ9: =SUM(AJ17,AJ30) -> 9 | AL9: =(AJ9-AH9)/AH9 -> 0.1435832274
B10: 50 | D10: =+W10 -> 0.008183314487 | F10: =ROUND((($B10*O$11+$O$9)),2) -> 12.53 | H10: =ROUND((($B10*Q$11+$Q$9)),2) -> 13.71 | J10: =H10-F10 -> 1.18 | L10: =(H10-F10)/F10 -> 0.09417398244 | U10: 50 | W10: 0.008183314487 | Y10: =ROUND((($U10*AH$11+$AH$9)),2) -> 12.53 | AA10: =(ROUND((($U10*AJ$11+$AJ$9)),2)) -> 13.9 | AC10: =AA10-Y10 -> 1.37 | AE10: =(AA10-Y10)/Y10 -> 0.1093375898
B11: 100 | D11: =+W11 -> 0.01103154642 | F11: =ROUND((($B11*O$11+$O$9)),2) -> 17.19 | H11: =ROUND((($B11*Q$11+$Q$9)),2) -> 18.42 | J11: =H11-F11 -> 1.23 | L11: =(H11-F11)/F11 -> 0.07155322862 | N11: Energy - First 600 | O11: =SUM(O18,O23:O29,O31,O33:O35) -> 0.09317472677 | Q11: =SUM(Q18,Q23:Q29,Q31,Q33:Q35) -> 0.09423848667 | S11: =(Q11-O11)/O11 -> 0.01141682884 | U11: 100 | W11: 0.01103154642 | Y11: =ROUND((($U11*AH$11+$AH$9)),2) -> 17.19 | AA11: =(ROUND((($U11*AJ$11+$AJ$9)),2)) -> 18.8 | AC11: =AA11-Y11 -> 1.61 | AE11: =(AA11-Y11)/Y11 -> 0.09365910413 | AG11: Energy - First 600 | AH11: =SUM(AH18,AH23:AH29,AH31,AH33:AH35) -> 0.09317472677 | AJ11: =SUM(AJ18,AJ23:AJ29,AJ31,AJ33:AJ35) -> 0.09799348667 | AL11: =(AJ11-AH11)/AH11 -> 0.05171745682
N12: Energy - Over 600 | O12: =SUM(O19,O23:O29,O32,O33:O35) -> 0.1119967268 | Q12: =SUM(Q19,Q23:Q29,Q32,Q33:Q35) -> 0.1141294867 | S12: =(Q12-O12)/O12 -> 0.01904305572 | AG12: Energy - Next 200 | AH12: =SUM(AH19,AH23:AH29,AH32:AH35) -> 0.1119967268 | AJ12: =SUM(AJ19,AJ23:AJ29,AJ32:AJ35) -> 0.09799348667 | AL12: =(AJ12-AH12)/AH12 -> -0.1250325835
B13: 150 | D13: =+W13 -> 0.01490868894 | F13: =ROUND((($B13*O$11+$O$9)),2) -> 21.85 | H13: =ROUND((($B13*Q$11+$Q$9)),2) -> 23.14 | J13: =H13-F13 -> 1.29 | L13: =(H13-F13)/F13 -> 0.0590389016 | U13: 150 | W13: 0.01490868894 | Y13: =ROUND((($U13*AH$11+$AH$9)),2) -> 21.85 | AA13: =(ROUND((($U13*AJ$11+$AJ$9)),2)) -> 23.7 | AC13: =AA13-Y13 -> 1.85 | AE13: =(AA13-Y13)/Y13 -> 0.08466819222 | AG13: Energy - Next 1000 | AH13: =SUM(AH20,AH23:AH29,AH32:AH35) -> 0.1119967268 | AJ13: =SUM(AJ20,AJ23:AJ29,AJ32:AJ35) -> 0.1186994867 | AL13: =(AJ13-AH13)/AH13 -> 0.05984781968
B14: 200 | D14: =+W14 -> 0.02051672881 | F14: =ROUND((($B14*O$11+$O$9)),2) -> 26.5 | H14: =ROUND((($B14*Q$11+$Q$9)),2) -> 27.85 | J14: =H14-F14 -> 1.35 | L14: =(H14-F14)/F14 -> 0.05094339623 | U14: 200 | W14: 0.02051672881 | Y14: =ROUND((($U14*AH$11+$AH$9)),2) -> 26.5 | AA14: =(ROUND((($U14*AJ$11+$AJ$9)),2)) -> 28.6 | AC14: =AA14-Y14 -> 2.1 | AE14: =(AA14-Y14)/Y14 -> 0.07924528302 | AG14: Energy - Over 1800 | AH14: =SUM(AH21,AH23:AH29,AH32:AH35) -> 0.1119967268 | AJ14: =SUM(AJ21,AJ23:AJ29,AJ32:AJ35) -> 0.1003904867 | AL14: =(AJ14-AH14)/AH14 -> -0.1036301723
B15: 300 | D15: =+W15 -> 0.06339231053 | F15: =ROUND((($B15*O$11+$O$9)),2) -> 35.82 | H15: =ROUND((($B15*Q$11+$Q$9)),2) -> 37.27 | J15: =H15-F15 -> 1.45 | L15: =(H15-F15)/F15 -> 0.04048017867 | U15: 300 | W15: 0.06339231053 | Y15: =ROUND((($U15*AH$11+$AH$9)),2) -> 35.82 | AA15: =(ROUND((($U15*AJ$11+$AJ$9)),2)) -> 38.4 | AC15: =AA15-Y15 -> 2.58 | AE15: =(AA15-Y15)/Y15 -> 0.07202680067
B17: 400 | D17: =+W17 -> 0.08936641218 | F17: =ROUND((($B17*O$11+$O$9)),2) -> 45.14 | H17: =ROUND((($B17*Q$11+$Q$9)),2) -> 46.7 | J17: =H17-F17 -> 1.56 | L17: =(H17-F17)/F17 -> 0.03455914931 | N17: =+N9 -> Basic 1 Phase | O17: 7.49 | Q17: 9 | U17: 400 | W17: 0.08936641218 | Y17: =ROUND((($U17*AH$11+$AH$9)),2) -> 45.14 | AA17: =(ROUND((($U17*AJ$11+$AJ$9)),2)) -> 48.2 | AC17: =AA17-Y17 -> 3.06 | AE17: =(AA17-Y17)/Y17 -> 0.06778910058 | AG17: =+AG9 -> Basic 1 Phase | AH17: 7.49 | AJ17: 9
B18: 500 | D18: =+W18 -> 0.1025922584 | F18: =ROUND((($B18*O$11+$O$9)),2) -> 54.46 | H18: =ROUND((($B18*Q$11+$Q$9)),2) -> 56.12 | J18: =H18-F18 -> 1.66 | L18: =(H18-F18)/F18 -> 0.03048108704 | N18: =+N11 -> Energy - First 600 | O18: 0.085578 | Q18: 0.091622 | U18: 500 | W18: 0.1025922584 | Y18: =ROUND((($U18*AH$11+$AH$9)),2) -> 54.46 | AA18: =(ROUND((($U18*AJ$11+$AJ$9)),2)) -> 58 | AC18: =AA18-Y18 -> 3.54 | AE18: =(AA18-Y18)/Y18 -> 0.06500183621 | AG18: =+AG11 -> Energy - First 600 | AH18: 0.085578 | AJ18: 0.095377
B19: 600 | D19: =+W19 -> 0.1026018018 | F19: =ROUND((($B19*O$11+$O$9)),2) -> 63.77 | H19: =ROUND((($B19*Q$11+$Q$9)),2) -> 65.54 | J19: =H19-F19 -> 1.77 | L19: =(H19-F19)/F19 -> 0.02775599812 | N19: =+N12 -> Energy - Over 600 | O19: 0.104157 | Q19: 0.111513 | U19: 600 | W19: 0.1026018018 | Y19: =ROUND((($U19*AH$11+$AH$9)),2) -> 63.77 | AA19: =(ROUND((($U19*AJ$11+$AJ$9)),2)) -> 67.8 | AC19: =AA19-Y19 -> 4.03 | AE19: =(AA19-Y19)/Y19 -> 0.06319586012 | AG19: =+AG12 -> Energy - Next 200 | AH19: 0.104157 | AJ19: 0.095377
B20: 700 | D20: =+W20 -> 0.09354041267 | F20: =ROUND((((600*O$11)+(($B20-600)*O$12)+$O$9)),2) -> 74.97 | H20: =ROUND((((600*Q$11)+(($B20-600)*Q$12)+$Q$9)),2) -> 76.96 | J20: =H20-F20 -> 1.99 | L20: =(H20-F20)/F20 -> 0.02654395091 | U20: 700 | W20: 0.09354041267 | Y20: =ROUND((($U20*AH$11+$AH$9)),2) -> 73.09 | AA20: =(ROUND((($U20*AJ$11+$AJ$9)),2)) -> 77.6 | AC20: =AA20-Y20 -> 4.51 | AE20: =(AA20-Y20)/Y20 -> 0.06170474757 | AG20: Energy - Next 1000 | AH20: 0.104157 | AJ20: 0.116083
AG21: Energy - Over 1800 | AH21: 0.104157 | AJ21: 0.097774
B22: 800 | D22: =+W22 -> 0.08078632991 | F22: =ROUND((((600*O$11)+(($B22-600)*O$12)+$O$9)),2) -> 86.17 | H22: =ROUND((((600*Q$11)+(($B22-600)*Q$12)+$Q$9)),2) -> 88.37 | J22: =H22-F22 -> 2.2 | L22: =(H22-F22)/F22 -> 0.02553092724 | U22: 800 | W22: 0.08078632991 | Y22: =ROUND((($U22*AH$11+$AH$9)),2) -> 82.41 | AA22: =(ROUND((($U22*AJ$11+$AJ$9)),2)) -> 87.39 | AC22: =AA22-Y22 -> 4.98 | AE22: =(AA22-Y22)/Y22 -> 0.06042955952
B23: 900 | C23: * | D23: =+W23 -> 0.06761732161 | F23: =ROUND((((600*O$11)+(($B23-600)*O$12)+$O$9)),2) -> 97.37 | H23: =ROUND((((600*Q$11)+(($B23-600)*Q$12)+$Q$9)),2) -> 99.78 | J23: =H23-F23 -> 2.41 | L23: =(H23-F23)/F23 -> 0.02475094998 | N23: Schedule 95 - PCA | O23: =+AH23 -> -0.003332734234 | Q23: =+AJ23 -> 0 | U23: 900 | V23: * | W23: 0.06761732161 | Y23: =ROUND((((600*AH$11)+(($U23-600)*AH$12)+$AH$9)),2) -> 97.37 | AA23: =(ROUND((((600*AJ$11)+(200*AJ$12)+(($U23-800)*AJ$13))+$AJ$9),2)) -> 99.26 | AC23: =AA23-Y23 -> 1.89 | AE23: =(AA23-Y23)/Y23 -> 0.01941049605 | AG23: Schedule 95 - PCA | AH23: -0.003332734234 | AJ23: 0
B24: 1000 | D24: =+W24 -> 0.05605438675 | F24: =ROUND((((600*O$11)+(($B24-600)*O$12)+$O$9)),2) -> 108.57 | H24: =ROUND((((600*Q$11)+(($B24-600)*Q$12)+$Q$9)),2) -> 111.19 | J24: =H24-F24 -> 2.62 | L24: =(H24-F24)/F24 -> 0.02413189647 | N24: Schedule 95A - Fed Inc Credit | O24: -0.002767 | Q24: -0.002767 | U24: 1000 | W24: 0.05605438675 | Y24: =ROUND((((600*AH$11)+(($U24-600)*AH$12)+$AH$9)),2) -> 108.57 | AA24: =(ROUND((((600*AJ$11)+(200*AJ$12)+(($U24-800)*AJ$13))+$AJ$9),2)) -> 111.13 | AC24: =AA24-Y24 -> 2.56 | AE24: =(AA24-Y24)/Y24 -> 0.02357925762 | AG24: Schedule 95A - Fed Inc Credit | AH24: -0.002767 | AJ24: =+AH24 -> -0.002767
B25: 1100 | D25: =+W25 -> 0.04605901401 | F25: =ROUND((((600*O$11)+(($B25-600)*O$12)+$O$9)),2) -> 119.77 | H25: =ROUND((((600*Q$11)+(($B25-600)*Q$12)+$Q$9)),2) -> 122.61 | J25: =H25-F25 -> 2.84 | L25: =(H25-F25)/F25 -> 0.02371211489 | N25: Schedule 120 - Conservation | O25: 0.006075 | Q25: 0.006075 | U25: 1100 | W25: 0.04605901401 | Y25: =ROUND((((600*AH$11)+(($U25-600)*AH$12)+$AH$9)),2) -> 119.77 | AA25: =(ROUND((((600*AJ$11)+(200*AJ$12)+(($U25-800)*AJ$13))+$AJ$9),2)) -> 123 | AC25: =AA25-Y25 -> 3.23 | AE25: =(AA25-Y25)/Y25 -> 0.02696835602 | AG25: Schedule 120 - Conservation | AH25: 0.006075 | AJ25: 0.006075
B26: 1200 | D26: =+W26 -> 0.03780264628 | F26: =ROUND((((600*O$11)+(($B26-600)*O$12)+$O$9)),2) -> 130.97 | H26: =ROUND((((600*Q$11)+(($B26-600)*Q$12)+$Q$9)),2) -> 134.02 | J26: =H26-F26 -> 3.05 | L26: =(H26-F26)/F26 -> 0.02328777583 | N26: Schedule 129 - Low Income | O26: 0.000913 | Q26: 0.000913 | U26: 1200 | W26: 0.03780264628 | Y26: =ROUND((((600*AH$11)+(($U26-600)*AH$12)+$AH$9)),2) -> 130.97 | AA26: =(ROUND((((600*AJ$11)+(200*AJ$12)+(($U26-800)*AJ$13))+$AJ$9),2)) -> 134.87 | AC26: =AA26-Y26 -> 3.9 | AE26: =(AA26-Y26)/Y26 -> 0.02977781171 | AG26: Schedule 129 - Low Income | AH26: 0.000913 | AJ26: 0.000913
N27: Schedule 132 - Merger Credit | O27: -0.000366 | Q27: -0.000366 | AG27: Schedule 132 - Merger Credit | AH27: -0.000366 | AJ27: -0.000366
B28: 1300 | D28: =+W28 -> 0.03093167208 | F28: =ROUND((((600*O$11)+(($B28-600)*O$12)+$O$9)),2) -> 142.17 | H28: =ROUND((((600*Q$11)+(($B28-600)*Q$12)+$Q$9)),2) -> 145.43 | J28: =H28-F28 -> 3.26 | L28: =(H28-F28)/F28 -> 0.02293029472 | N28: Schedule 137 - REC | O28: 0 | Q28: 0 | U28: 1300 | W28: 0.03093167208 | Y28: =ROUND((((600*AH$11)+(($U28-600)*AH$12)+$AH$9)),2) -> 142.17 | AA28: =(ROUND((((600*AJ$11)+(200*AJ$12)+(($U28-800)*AJ$13))+$AJ$9),2)) -> 146.74 | AC28: =AA28-Y28 -> 4.57 | AE28: =(AA28-Y28)/Y28 -> 0.0321446156 | AG28: Schedule 137 - REC | AH28: 0 | AJ28: 0
B29: 1400 | D29: =+W29 -> 0.02553248847 | F29: =ROUND((((600*O$11)+(($B29-600)*O$12)+$O$9)),2) -> 153.37 | H29: =ROUND((((600*Q$11)+(($B29-600)*Q$12)+$Q$9)),2) -> 156.85 | J29: =H29-F29 -> 3.48 | L29: =(H29-F29)/F29 -> 0.02269022625 | N29: Schedule 140 - Property Tax | O29: 0.00355 | Q29: 0.00355 | U29: 1400 | W29: 0.02553248847 | Y29: =ROUND((((600*AH$11)+(($U29-600)*AH$12)+$AH$9)),2) -> 153.37 | AA29: =(ROUND((((600*AJ$11)+(200*AJ$12)+(($U29-800)*AJ$13))+$AJ$9),2)) -> 158.61 | AC29: =AA29-Y29 -> 5.24 | AE29: =(AA29-Y29)/Y29 -> 0.03416574297 | AG29: Schedule 140 - Property Tax | AH29: 0.00355 | AJ29: 0.00355
B30: 1600 | D30: =+W30 -> 0.03881238567 | F30: =ROUND((((600*O$11)+(($B30-600)*O$12)+$O$9)),2) -> 175.77 | H30: =ROUND((((600*Q$11)+(($B30-600)*Q$12)+$Q$9)),2) -> 179.67 | J30: =H30-F30 -> 3.9 | L30: =(H30-F30)/F30 -> 0.0221880867 | N30: Schedule 141 - ERF - Basic Charge | O30: 0.38 | Q30: 0 | U30: 1600 | W30: 0.03881238567 | Y30: =ROUND((((600*AH$11)+(($U30-600)*AH$12)+$AH$9)),2) -> 175.77 | AA30: =(ROUND((((600*AJ$11)+(200*AJ$12)+(($U30-800)*AJ$13))+$AJ$9),2)) -> 182.35 | AC30: =AA30-Y30 -> 6.58 | AE30: =(AA30-Y30)/Y30 -> 0.03743528475 | AG30: Schedule 141 - ERF - Basic Charge | AH30: 0.38 | AJ30: 0
B31: 2000 | D31: =+W31 -> 0.04664470678 | F31: =ROUND((((600*O$11)+(($B31-600)*O$12)+$O$9)),2) -> 220.57 | H31: =ROUND((((600*Q$11)+(($B31-600)*Q$12)+$Q$9)),2) -> 225.32 | J31: =H31-F31 -> 4.75 | L31: =(H31-F31)/F31 -> 0.02153511357 | N31: Schedule 141 - ERF - First 600 kWh | O31: 0.001114 | Q31: 0 | U31: 2000 | W31: 0.04664470678 | Y31: =ROUND((((600*AH$11)+(($U31-600)*AH$12)+$AH$9)),2) -> 220.57 | AA31: =(ROUND((((600*AJ$11)+(200*AJ$12)+(1000*AJ$13)+(($U31-1800)*AJ$14)))+$AJ$9,2)) -> 226.17 | AC31: =AA31-Y31 -> 5.6 | AE31: =(AA31-Y31)/Y31 -> 0.02538876547 | AG31: Schedule 141 - ERF - First 600 kWh | AH31: 0.001114 | AJ31: 0
B32: 2500 | D32: =+W32 -> 0.02846289474 | F32: =ROUND((((600*O$11)+(($B32-600)*O$12)+$O$9)),2) -> 276.57 | H32: =ROUND((((600*Q$11)+(($B32-600)*Q$12)+$Q$9)),2) -> 282.39 | J32: =H32-F32 -> 5.82 | L32: =(H32-F32)/F32 -> 0.02104349713 | N32: Schedule 141 - ERF - Over 600 kWh | O32: 0.001357 | Q32: 0 | U32: 2500 | W32: 0.02846289474 | Y32: =ROUND((((600*AH$11)+(($U32-600)*AH$12)+$AH$9)),2) -> 276.57 | AA32: =(ROUND((((600*AJ$11)+(200*AJ$12)+(1000*AJ$13)+(($U32-1800)*AJ$14)))+$AJ$9,2)) -> 276.37 | AC32: =AA32-Y32 -> -0.2 | AE32: =(AA32-Y32)/Y32 -> -0.0007231442311 | AG32: Schedule 141 - ERF - Over 600 kWh | AH32: 0.001357 | AJ32: 0
N33: Schedule 142 - Decoupling | O33: 0.009204 | Q33: 0.001201 | AG33: Schedule 142 - Decoupling | AH33: 0.009204 | AJ33: 0.001201
B34: 3000 | D34: =+W34 -> 0.0136009092 | F34: =ROUND((((600*O$11)+(($B34-600)*O$12)+$O$9)),2) -> 332.57 | H34: =ROUND((((600*Q$11)+(($B34-600)*Q$12)+$Q$9)),2) -> 339.45 | J34: =H34-F34 -> 6.88 | L34: =(H34-F34)/F34 -> 0.02068737409 | N34: Schedule 149 - CRM | O34: =+AH34 -> 0 | Q34: 0.0008040256744 | U34: 3000 | W34: 0.0136009092 | Y34: =ROUND((((600*AH$11)+(($U34-600)*AH$12)+$AH$9)),2) -> 332.57 | AA34: =(ROUND((((600*AJ$11)+(200*AJ$12)+(1000*AJ$13)+(($U34-1800)*AJ$14)))+$AJ$9,2)) -> 326.56 | AC34: =AA34-Y34 -> -6.01 | AE34: =(AA34-Y34)/Y34 -> -0.01807138347 | AG34: Schedule 149 - CRM | AH34: 0 | AJ34: 0.0008040256744
B35: 4000 | D35: =+W35 -> 0.01024763867 | F35: =ROUND((((600*O$11)+(($B35-600)*O$12)+$O$9)),2) -> 444.56 | H35: =ROUND((((600*Q$11)+(($B35-600)*Q$12)+$Q$9)),2) -> 453.58 | J35: =H35-F35 -> 9.02 | L35: =(H35-F35)/F35 -> 0.02028972467 | N35: Schedule 194 - BPA Exch Credit | O35: =+AH35 -> -0.006793539 | Q35: =+AJ35 -> -0.006793539 | U35: 4000 | W35: 0.01024763867 | Y35: =ROUND((((600*AH$11)+(($U35-600)*AH$12)+$AH$9)),2) -> 444.56 | AA35: =(ROUND((((600*AJ$11)+(200*AJ$12)+(1000*AJ$13)+(($U35-1800)*AJ$14)))+$AJ$9,2)) -> 426.95 | AC35: =AA35-Y35 -> -17.61 | AE35: =(AA35-Y35)/Y35 -> -0.03961220083 | AG35: Schedule 194 - BPA Exch Credit | AH35: -0.006793539 | AJ35: =+AH35 -> -0.006793539
B36: 5000 | D36: =+W36 -> 0.002991213595 | F36: =ROUND((((600*O$11)+(($B36-600)*O$12)+$O$9)),2) -> 556.56 | H36: =ROUND((((600*Q$11)+(($B36-600)*Q$12)+$Q$9)),2) -> 567.71 | J36: =H36-F36 -> 11.15 | L36: =(H36-F36)/F36 -> 0.02003377893 | U36: 5000 | W36: 0.002991213595 | Y36: =ROUND((((600*AH$11)+(($U36-600)*AH$12)+$AH$9)),2) -> 556.56 | AA36: =(ROUND((((600*AJ$11)+(200*AJ$12)+(1000*AJ$13)+(($U36-1800)*AJ$14)))+$AJ$9,2)) -> 527.34 | AC36: =AA36-Y36 -> -29.22 | AE36: =(AA36-Y36)/Y36 -> -0.05250107805
B37: >5000 | D37: =+W37 -> 0.00258093307 | N37: Residential Overall: | O37: 0.08163584833 | U37: >5000 | W37: 0.00258093307 | AG37: Residential Overall: | AH37: 0.08163475105
B40: Notes: | U40: Notes:
B41: * Average PSE Customer | U41: * Average PSE Customer
B42: 1 Includes Rider Schedules 95, 95A, 120, 129, 132, 137, 140, 141, 142 and 194 | U42: 1 Includes Rider Schedules 95, 95A, 120, 129, 132, 137, 140, 141, 142 and 194

Sheet Exhibit No.__(JAP-Sch 24 Imp)
B1: Puget Sound Energy
B2: Monthly Billing Comparison
B3: Schedule 24
B4: Secondary Voltage General Service, Demand < 50 kW
D6: Monthly Billing 1, 2 | L6: Dollar | P6: Percent
D7: Present Price Schedule 24 | H7: Proposed Price Schedule 24 | L7: Difference | P7: Difference
B8: kWh | D8: 1 Phase | F8: 3 Phase | H8: 1 Phase | J8: 3 Phase | L8: 1 Phase | N8: 3 Phase | P8: 1 Phase | R8: 3 Phase | T8: Net Present Price | W8: Net Proposed Price
U9: Single Phase | V9: Three Phase | X9: Single Phase | Y9: Three Phase
B10: 500 | D10: =ROUND($U$10+$B10*$U$14,2) -> 58.58 | F10: =ROUND($V$10+$B10*$V$14,2) -> 74.23 | H10: =ROUND($X$10+$B10*$X$14,2) -> 60.61 | J10: =ROUND($Y$10+$B10*$Y$14,2) -> 76.41 | L10: =H10-D10 -> 2.03 | N10: =J10-F10 -> 2.18 | P10: =ROUND(H10/D10-1,4) -> 0.0347 | R10: =ROUND(J10/F10-1,4) -> 0.0294 | T10: Basic Charge | U10: =SUM(U17,V29) -> 10.16 | V10: =SUM(V17,V30) -> 25.81 | W10: =+T10 -> Basic Charge | X10: =SUM(X17,Y29) -> 10.25 | Y10: =SUM(Y17,Y30) -> 26.05 | AA10: =(X10-U10)/U10 -> 0.008858267717 | AB10: =(Y10-V10)/V10 -> 0.009298721426
B11: =+B10+500 -> 1000 | D11: =ROUND($U$10+$B11*$U$14,2) -> 107.01 | F11: =ROUND($V$10+$B11*$V$14,2) -> 122.66 | H11: =ROUND($X$10+$B11*$X$14,2) -> 110.97 | J11: =ROUND($Y$10+$B11*$Y$14,2) -> 126.77 | L11: =H11-D11 -> 3.96 | N11: =J11-F11 -> 4.11 | P11: =ROUND(H11/D11-1,4) -> 0.037 | R11: =ROUND(J11/F11-1,4) -> 0.0335
B12: =+B11+500 -> 1500 | D12: =ROUND($U$10+$B12*$U$14,2) -> 155.43 | F12: =ROUND($V$10+$B12*$V$14,2) -> 171.08 | H12: =ROUND($X$10+$B12*$X$14,2) -> 161.33 | J12: =ROUND($Y$10+$B12*$Y$14,2) -> 177.13 | L12: =H12-D12 -> 5.9 | N12: =J12-F12 -> 6.05 | P12: =ROUND(H12/D12-1,4) -> 0.038 | R12: =ROUND(J12/F12-1,4) -> 0.0354 | T12: Winter kWh | U12: =SUM(U18,V22:V28,V31,V33:V34) -> 0.09833014737 | V12: =U12 -> 0.09833014737 | W12: =+T12 -> Winter kWh | X12: =SUM(X18,Y22:Y28,Y31,Y33:Y34) -> 0.102275058 | Y12: =X12 -> 0.102275058 | AA12: =(X12-U12)/U12 -> 0.04011903557 | AB12: 0.04011903557
T13: Summer kWh | U13: =SUM(U19,V22:V28,V32,V33:V34) -> 0.09518914737 | V13: =U13 -> 0.09518914737 | W13: =+T13 -> Summer kWh | X13: =SUM(X19,Y22:Y28,Y32,Y33:Y34) -> 0.09898505805 | Y13: =X13 -> 0.09898505805 | AA13: 0.03987755732 | AB13: 0.03987755732
B14: 2500 | D14: =ROUND($U$10+$B14*$U$14,2) -> 252.27 | F14: =ROUND($V$10+$B14*$V$14,2) -> 267.92 | H14: =ROUND($X$10+$B14*$X$14,2) -> 262.05 | J14: =ROUND($Y$10+$B14*$Y$14,2) -> 277.85 | L14: =H14-D14 -> 9.78 | N14: =J14-F14 -> 9.93 | P14: =ROUND(H14/D14-1,4) -> 0.0388 | R14: =ROUND(J14/F14-1,4) -> 0.0371 | T14: Average kWh | U14: =ROUND(SUM(U20,V22:V28,V33:V34)+AVERAGE(V31:V32),6) -> 0.096845 | V14: =U14 -> 0.096845 | W14: =+T14 -> Average kWh | X14: =ROUND(SUM(X20,Y22:Y28,Y33:Y34)+AVERAGE(Y31:Y32),6) -> 0.100721 | Y14: =X14 -> 0.100721 | AA14: 0.04002271671 | AB14: 0.04002271671
B15: =+B14+500 -> 3000 | D15: =ROUND($U$10+$B15*$U$14,2) -> 300.7 | F15: =ROUND($V$10+$B15*$V$14,2) -> 316.35 | H15: =ROUND($X$10+$B15*$X$14,2) -> 312.41 | J15: =ROUND($Y$10+$B15*$Y$14,2) -> 328.21 | L15: =H15-D15 -> 11.71 | N15: =J15-F15 -> 11.86 | P15: =ROUND(H15/D15-1,4) -> 0.0389 | R15: =ROUND(J15/F15-1,4) -> 0.0375
B16: =+B15+500 -> 3500 | D16: =ROUND($U$10+$B16*$U$14,2) -> 349.12 | F16: =ROUND($V$10+$B16*$V$14,2) -> 364.77 | H16: =ROUND($X$10+$B16*$X$14,2) -> 362.77 | J16: =ROUND($Y$10+$B16*$Y$14,2) -> 378.57 | L16: =H16-D16 -> 13.65 | N16: =J16-F16 -> 13.8 | P16: =ROUND(H16/D16-1,4) -> 0.0391 | R16: =ROUND(J16/F16-1,4) -> 0.0378
T17: =+T10 -> Basic Charge | U17: 9.66 | V17: 24.55 | X17: 10.25 | Y17: 26.05
B18: =+B16+500 -> 4000 | D18: =ROUND($U$10+$B18*$U$14,2) -> 397.54 | F18: =ROUND($V$10+$B18*$V$14,2) -> 413.19 | H18: =ROUND($X$10+$B18*$X$14,2) -> 413.13 | J18: =ROUND($Y$10+$B18*$Y$14,2) -> 428.93 | L18: =H18-D18 -> 15.59 | N18: =J18-F18 -> 15.74 | P18: =ROUND(H18/D18-1,4) -> 0.0392 | R18: =ROUND(J18/F18-1,4) -> 0.0381 | T18: =+T12 -> Winter kWh | U18: 0.089457 | V18: 0.089457 | X18: 0.094936 | Y18: 0.094936
B19: =+B18+500 -> 4500 | D19: =ROUND($U$10+$B19*$U$14,2) -> 445.96 | F19: =ROUND($V$10+$B19*$V$14,2) -> 461.61 | H19: =ROUND($X$10+$B19*$X$14,2) -> 463.49 | J19: =ROUND($Y$10+$B19*$Y$14,2) -> 479.29 | L19: =H19-D19 -> 17.53 | N19: =J19-F19 -> 17.68 | P19: =ROUND(H19/D19-1,4) -> 0.0393 | R19: =ROUND(J19/F19-1,4) -> 0.0383 | T19: =+T13 -> Summer kWh | U19: 0.086359 | V19: 0.086359 | X19: 0.091646 | Y19: 0.091646
B20: =+B19+500 -> 5000 | D20: =ROUND($U$10+$B20*$U$14,2) -> 494.39 | F20: =ROUND($V$10+$B20*$V$14,2) -> 510.04 | H20: =ROUND($X$10+$B20*$X$14,2) -> 513.86 | J20: =ROUND($Y$10+$B20*$Y$14,2) -> 529.66 | L20: =H20-D20 -> 19.47 | N20: =J20-F20 -> 19.62 | P20: =ROUND(H20/D20-1,4) -> 0.0394 | R20: =ROUND(J20/F20-1,4) -> 0.0385 | T20: =+T14 -> Average kWh | U20: 0.087993 | V20: 0.087993 | X20: 0.093382 | Y20: 0.093382
B22: =+B20+1000 -> 6000 | D22: =ROUND($U$10+$B22*$U$14,2) -> 591.23 | F22: =ROUND($V$10+$B22*$V$14,2) -> 606.88 | H22: =ROUND($X$10+$B22*$X$14,2) -> 614.58 | J22: =ROUND($Y$10+$B22*$Y$14,2) -> 630.38 | L22: =H22-D22 -> 23.35 | N22: =J22-F22 -> 23.5 | P22: =ROUND(H22/D22-1,4) -> 0.0395 | R22: =ROUND(J22/F22-1,4) -> 0.0387 | T22: Schedule 95 - PCA | V22: -0.003073852632 | Y22: 0
B23: =+B22+1000 -> 7000 | D23: =ROUND($U$10+$B23*$U$14,2) -> 688.08 | F23: =ROUND($V$10+$B23*$V$14,2) -> 703.73 | H23: =ROUND($X$10+$B23*$X$14,2) -> 715.3 | J23: =ROUND($Y$10+$B23*$Y$14,2) -> 731.1 | L23: =H23-D23 -> 27.22 | N23: =J23-F23 -> 27.37 | P23: =ROUND(H23/D23-1,4) -> 0.0396 | R23: =ROUND(J23/F23-1,4) -> 0.0389 | T23: Schedule 95A - Fed Inc Credit | V23: -0.002122 | Y23: =+V23 -> -0.002122
B24: =+B23+1000 -> 8000 | D24: =ROUND($U$10+$B24*$U$14,2) -> 784.92 | F24: =ROUND($V$10+$B24*$V$14,2) -> 800.57 | H24: =ROUND($X$10+$B24*$X$14,2) -> 816.02 | J24: =ROUND($Y$10+$B24*$Y$14,2) -> 831.82 | L24: =H24-D24 -> 31.1 | N24: =J24-F24 -> 31.25 | P24: =ROUND(H24/D24-1,4) -> 0.0396 | R24: =ROUND(J24/F24-1,4) -> 0.039 | T24: Schedule 120 - Conservation | V24: 0.004641 | Y24: 0.004641
T25: Schedule 129 - Low Income | V25: 0.000835 | Y25: 0.000835
B26: =+B24+1000 -> 9000 | D26: =ROUND($U$10+$B26*$U$14,2) -> 881.77 | F26: =ROUND($V$10+$B26*$V$14,2) -> 897.42 | H26: =ROUND($X$10+$B26*$X$14,2) -> 916.74 | J26: =ROUND($Y$10+$B26*$Y$14,2) -> 932.54 | L26: =H26-D26 -> 34.97 | N26: =J26-F26 -> 35.12 | P26: =ROUND(H26/D26-1,4) -> 0.0397 | R26: =ROUND(J26/F26-1,4) -> 0.0391 | T26: Schedule 132 - Merger Credit | V26: -0.000266 | Y26: -0.000266
B27: =+B26+1000 -> 10000 | D27: =ROUND($U$10+$B27*$U$14,2) -> 978.61 | F27: =ROUND($V$10+$B27*$V$14,2) -> 994.26 | H27: =ROUND($X$10+$B27*$X$14,2) -> 1017.46 | J27: =ROUND($Y$10+$B27*$Y$14,2) -> 1033.26 | L27: =H27-D27 -> 38.85 | N27: =J27-F27 -> 39 | P27: =ROUND(H27/D27-1,4) -> 0.0397 | R27: =ROUND(J27/F27-1,4) -> 0.0392 | T27: Schedule 137 - REC | V27: 0 | Y27: 0
B28: =+B27+1000 -> 11000 | D28: =ROUND($U$10+$B28*$U$14,2) -> 1075.46 | F28: =ROUND($V$10+$B28*$V$14,2) -> 1091.11 | H28: =ROUND($X$10+$B28*$X$14,2) -> 1118.18 | J28: =ROUND($Y$10+$B28*$Y$14,2) -> 1133.98 | L28: =H28-D28 -> 42.72 | N28: =J28-F28 -> 42.87 | P28: =ROUND(H28/D28-1,4) -> 0.0397 | R28: =ROUND(J28/F28-1,4) -> 0.0393 | T28: Schedule 140 - Property Tax | V28: 0.002506 | Y28: 0.002506
T29: Schedule 141 - ERF - Basic 1 Phase | V29: 0.5 | Y29: 0
B30: =+B28+1000 -> 12000 | D30: =ROUND($U$10+$B30*$U$14,2) -> 1172.3 | F30: =ROUND($V$10+$B30*$V$14,2) -> 1187.95 | H30: =ROUND($X$10+$B30*$X$14,2) -> 1218.9 | J30: =ROUND($Y$10+$B30*$Y$14,2) -> 1234.7 | L30: =H30-D30 -> 46.6 | N30: =J30-F30 -> 46.75 | P30: =ROUND(H30/D30-1,4) -> 0.0398 | R30: =ROUND(J30/F30-1,4) -> 0.0394 | T30: Schedule 141 - ERF - Basic 3 Phase | V30: 1.26 | Y30: 0
B31: =+B30+1000 -> 13000 | D31: =ROUND($U$10+$B31*$U$14,2) -> 1269.15 | F31: =ROUND($V$10+$B31*$V$14,2) -> 1284.8 | H31: =ROUND($X$10+$B31*$X$14,2) -> 1319.62 | J31: =ROUND($Y$10+$B31*$Y$14,2) -> 1335.42 | L31: =H31-D31 -> 50.47 | N31: =J31-F31 -> 50.62 | P31: =ROUND(H31/D31-1,4) -> 0.0398 | R31: =ROUND(J31/F31-1,4) -> 0.0394 | T31: Schedule 141 - ERF - Winter | V31: 0.001197 | Y31: 0
B32: =+B31+1000 -> 14000 | D32: =ROUND($U$10+$B32*$U$14,2) -> 1365.99 | F32: =ROUND($V$10+$B32*$V$14,2) -> 1381.64 | H32: =ROUND($X$10+$B32*$X$14,2) -> 1420.34 | J32: =ROUND($Y$10+$B32*$Y$14,2) -> 1436.14 | L32: =H32-D32 -> 54.35 | N32: =J32-F32 -> 54.5 | P32: =ROUND(H32/D32-1,4) -> 0.0398 | R32: =ROUND(J32/F32-1,4) -> 0.0394 | T32: Schedule 141 - ERF - Summer | V32: 0.001154 | Y32: 0
T33: Schedule 142 - Decoupling | V33: 0.005156 | Y33: 0.001335
B34: =+B32+1000 -> 15000 | D34: =ROUND($U$10+$B34*$U$14,2) -> 1462.84 | F34: =ROUND($V$10+$B34*$V$14,2) -> 1478.49 | H34: =ROUND($X$10+$B34*$X$14,2) -> 1521.07 | J34: =ROUND($Y$10+$B34*$Y$14,2) -> 1536.87 | L34: =H34-D34 -> 58.23 | N34: =J34-F34 -> 58.38 | P34: =ROUND(H34/D34-1,4) -> 0.0398 | R34: =ROUND(J34/F34-1,4) -> 0.0395 | T34: Schedule 149 - CRM | V34: 0 | Y34: 0.0004100580483
B35: =+B34+1000 -> 16000 | D35: =ROUND($U$10+$B35*$U$14,2) -> 1559.68 | F35: =ROUND($V$10+$B35*$V$14,2) -> 1575.33 | H35: =ROUND($X$10+$B35*$X$14,2) -> 1621.79 | J35: =ROUND($Y$10+$B35*$Y$14,2) -> 1637.59 | L35: =H35-D35 -> 62.11 | N35: =J35-F35 -> 62.26 | P35: =ROUND(H35/D35-1,4) -> 0.0398 | R35: =ROUND(J35/F35-1,4) -> 0.0395
B36: =+B35+1000 -> 17000 | D36: =ROUND($U$10+$B36*$U$14,2) -> 1656.53 | F36: =ROUND($V$10+$B36*$V$14,2) -> 1672.18 | H36: =ROUND($X$10+$B36*$X$14,2) -> 1722.51 | J36: =ROUND($Y$10+$B36*$Y$14,2) -> 1738.31 | L36: =H36-D36 -> 65.98 | N36: =J36-F36 -> 66.13 | P36: =ROUND(H36/D36-1,4) -> 0.0398 | R36: =ROUND(J36/F36-1,4) -> 0.0395 | T36: Overall: | U36: 0.06122684036
B38: =+B36+1000 -> 18000 | D38: =ROUND($U$10+$B38*$U$14,2) -> 1753.37 | F38: =ROUND($V$10+$B38*$V$14,2) -> 1769.02 | H38: =ROUND($X$10+$B38*$X$14,2) -> 1823.23 | J38: =ROUND($Y$10+$B38*$Y$14,2) -> 1839.03 | L38: =H38-D38 -> 69.86 | N38: =J38-F38 -> 70.01 | P38: =ROUND(H38/D38-1,4) -> 0.0398 | R38: =ROUND(J38/F38-1,4) -> 0.0396
B39: =+B38+1000 -> 19000 | D39: =ROUND($U$10+$B39*$U$14,2) -> 1850.22 | F39: =ROUND($V$10+$B39*$V$14,2) -> 1865.87 | H39: =ROUND($X$10+$B39*$X$14,2) -> 1923.95 | J39: =ROUND($Y$10+$B39*$Y$14,2) -> 1939.75 | L39: =H39-D39 -> 73.73 | N39: =J39-F39 -> 73.88 | P39: =ROUND(H39/D39-1,4) -> 0.0398 | R39: =ROUND(J39/F39-1,4) -> 0.0396
B40: =+B39+1000 -> 20000 | D40: =ROUND($U$10+$B40*$U$14,2) -> 1947.06 | F40: =ROUND($V$10+$B40*$V$14,2) -> 1962.71 | H40: =ROUND($X$10+$B40*$X$14,2) -> 2024.67 | J40: =ROUND($Y$10+$B40*$Y$14,2) -> 2040.47 | L40: =H40-D40 -> 77.61 | N40: =J40-F40 -> 77.76 | P40: =ROUND(H40/D40-1,4) -> 0.0399 | R40: =ROUND(J40/F40-1,4) -> 0.0396
B42: Notes:
B43: 1 Includes Rider Schedules 95A, 95, 120, 129, 132, 137, 140, 141 and 142
B44: 2 Average Non-Seasonal Energy Rate

Sheet Exhibit No.__(JAP-Sch 25 Imp)
B1: Puget Sound Energy
B2: Monthly Billing Comparison
B3: Schedule 25
B4: Secondary Voltage General Service, Small Demand Between 50 & 350 kW
B6: kW | G6: Monthly Billing 1, 2
B7: Load Size/ | D7: kWh per kW | G7: Present | I7: Proposed | K7: Percent
B8: Demand | D8: (Equiv Hours) | E8: kWh | G8: Schedule 25 | I8: Schedule 25 | K8: Difference | N8: Net Present Price | P8: Net Proposed Price
B10: 50 | D10: 300 | E10: =ROUND((B$10*D10),0) -> 15000 | G10: =+O$10+IF($E10<20000,$E10*O$14,20000*O$14+($E10-20000)*O$16)+IF($B10>50,($B10-50)*O$22,0) -> 1468.335 | I10: =+Q$10+IF($E10<20000,$E10*Q$14,20000*Q$14+($E10-20000)*Q$16)+IF($B10>50,($B10-50)*Q$22,0) -> 1519.22 | K10: =ROUND((+I10-G10)/G10,3) -> 0.035 | N10: Basic Charge | O10: =SUM(O27,O46) -> 54.27 | P10: =+N10 -> Basic Charge | Q10: =SUM(Q27,Q46) -> 54.83 | S10: =(Q10-O10)/O10 -> 0.01031877649
B11: =+B10 -> 50 | D11: 500 | E11: =ROUND((B$10*D11),0) -> 25000 | G11: =+O$10+IF($E11<20000,$E11*O$14,20000*O$14+($E11-20000)*O$16)+IF($B11>50,($B11-50)*O$22,0) -> 2301.771833 | I11: =+Q$10+IF($E11<20000,$E11*Q$14,20000*Q$14+($E11-20000)*Q$16)+IF($B11>50,($B11-50)*Q$22,0) -> 2381.296313 | K11: =ROUND((+I11-G11)/G11,3) -> 0.035
B12: =+B11 -> 50 | D12: 700 | E12: =ROUND((B$10*D12),0) -> 35000 | G12: =+O$10+IF($E12<20000,$E12*O$14,20000*O$14+($E12-20000)*O$16)+IF($B12>50,($B12-50)*O$22,0) -> 3025.935498 | I12: =+Q$10+IF($E12<20000,$E12*Q$14,20000*Q$14+($E12-20000)*Q$16)+IF($B12>50,($B12-50)*Q$22,0) -> 3129.188938 | K12: =ROUND((+I12-G12)/G12,3) -> 0.034 | N12: Winter kWh - First 20,000 | O12: =SUM(O28,O39:O45,O48,O51:O52) -> 0.09833036654 | P12: =+N12 -> Winter kWh - First 20,000 | Q12: =SUM(Q28,Q39:Q45,Q48,Q51:Q52) -> 0.1018642625 | S12: =(Q12-O12)/O12 -> 0.0359390094
N13: Summer kWh - First 20,000 | O13: =SUM(O29,O39:O45,O49,O51:O52) -> 0.09004336654 | P13: =+N13 -> Summer kWh - First 20,000 | Q13: =SUM(Q29,Q39:Q45,Q49,Q51:Q52) -> 0.09321026251 | S13: =(Q13-O13)/O13 -> 0.03517078592
B14: 100 | D14: 300 | E14: =ROUND((B$14*D14),0) -> 30000 | G14: =+O$10+IF($E14<20000,$E14*O$14,20000*O$14+($E14-20000)*O$16)+IF($B14>50,($B14-50)*O$22,0) -> 3040.853665 | I14: =+Q$10+IF($E14<20000,$E14*Q$14,20000*Q$14+($E14-20000)*Q$16)+IF($B14>50,($B14-50)*Q$22,0) -> 3154.742625 | K14: =ROUND((+I14-G14)/G14,3) -> 0.037 | N14: Average kWh - First 20,000 | O14: =ROUND(SUM(O30,O39:O45,O51:O52)+AVERAGE(O48:O49),6) -> 0.094271 | P14: =+N14 -> Average kWh - First 20,000 | Q14: =ROUND(SUM(Q30,Q39:Q45,Q51:Q52)+AVERAGE(Q48:Q49),6) -> 0.097626 | S14: =(Q14-O14)/O14 -> 0.03558888736
B15: =+B14 -> 100 | D15: 500 | E15: =ROUND((B$14*D15),0) -> 50000 | G15: =+O$10+IF($E15<20000,$E15*O$14,20000*O$14+($E15-20000)*O$16)+IF($B15>50,($B15-50)*O$22,0) -> 4489.180996 | I15: =+Q$10+IF($E15<20000,$E15*Q$14,20000*Q$14+($E15-20000)*Q$16)+IF($B15>50,($B15-50)*Q$22,0) -> 4650.527875 | K15: =ROUND((+I15-G15)/G15,3) -> 0.036
B16: =+B15 -> 100 | D16: 700 | E16: =ROUND((B$14*D16),0) -> 70000 | G16: =+O$10+IF($E16<20000,$E16*O$14,20000*O$14+($E16-20000)*O$16)+IF($B16>50,($B16-50)*O$22,0) -> 5937.508327 | I16: =+Q$10+IF($E16<20000,$E16*Q$14,20000*Q$14+($E16-20000)*Q$16)+IF($B16>50,($B16-50)*Q$22,0) -> 6146.313126 | K16: =ROUND((+I16-G16)/G16,3) -> 0.035 | N16: kWh - All Over 20,000 | O16: =SUM(O31,O39:O45,O50,O51:O52) -> 0.07241636654 | P16: =+N16 -> kWh - All Over 20,000 | Q16: =SUM(Q31,Q39:Q45,Q50,Q51:Q52) -> 0.07478926251 | S16: =(Q16-O16)/O16 -> 0.03276739888
B18: 150 | D18: 300 | E18: =ROUND((B$18*D18),0) -> 45000 | G18: =+O$10+IF($E18<20000,$E18*O$14,20000*O$14+($E18-20000)*O$16)+IF($B18>50,($B18-50)*O$22,0) -> 4504.099164 | I18: =+Q$10+IF($E18<20000,$E18*Q$14,20000*Q$14+($E18-20000)*Q$16)+IF($B18>50,($B18-50)*Q$22,0) -> 4676.081563 | K18: =ROUND((+I18-G18)/G18,3) -> 0.038 | N18: kW - First 50 | O18: 0 | P18: =+N18 -> kW - First 50 | Q18: 0
B19: =+B18 -> 150 | D19: 500 | E19: =ROUND((B$18*D19),0) -> 75000 | G19: =+O$10+IF($E19<20000,$E19*O$14,20000*O$14+($E19-20000)*O$16)+IF($B19>50,($B19-50)*O$22,0) -> 6676.59016 | I19: =+Q$10+IF($E19<20000,$E19*Q$14,20000*Q$14+($E19-20000)*Q$16)+IF($B19>50,($B19-50)*Q$22,0) -> 6919.759438 | K19: =ROUND((+I19-G19)/G19,3) -> 0.036
B20: =+B19 -> 150 | D20: 700 | E20: =ROUND((B$18*D20),0) -> 105000 | G20: =+O$10+IF($E20<20000,$E20*O$14,20000*O$14+($E20-20000)*O$16)+IF($B20>50,($B20-50)*O$22,0) -> 8849.081156 | I20: =+Q$10+IF($E20<20000,$E20*Q$14,20000*Q$14+($E20-20000)*Q$16)+IF($B20>50,($B20-50)*Q$22,0) -> 9163.437313 | K20: =ROUND((+I20-G20)/G20,3) -> 0.036 | N20: Winter kW - Over 50 | O20: =SUM(O33,O47) -> 9.02 | P20: =+N20 -> Winter kW - Over 50 | Q20: =SUM(Q33,Q47) -> 9.56 | S20: =(Q20-O20)/O20 -> 0.05986696231
N21: Summer kW - Over 50 | O21: =SUM(O34,O47) -> 6.02 | P21: =+N21 -> Summer kW - Over 50 | Q21: =SUM(Q34,Q47) -> 6.38 | S21: =(Q21-O21)/O21 -> 0.05980066445
B22: 200 | D22: 300 | E22: =ROUND((B$22*D22),0) -> 60000 | G22: =+O$10+IF($E22<20000,$E22*O$14,20000*O$14+($E22-20000)*O$16)+IF($B22>50,($B22-50)*O$22,0) -> 5967.344662 | I22: =+Q$10+IF($E22<20000,$E22*Q$14,20000*Q$14+($E22-20000)*Q$16)+IF($B22>50,($B22-50)*Q$22,0) -> 6197.4205 | K22: =ROUND((+I22-G22)/G22,3) -> 0.039 | N22: Average kW - Over 50 | O22: =SUM(O35,O47) -> 7.54 | P22: =+N22 -> Average kW - Over 50 | Q22: =SUM(Q35,Q47) -> 7.99 | S22: =(Q22-O22)/O22 -> 0.05968169761
B23: =+B22 -> 200 | D23: 500 | E23: =ROUND((B$22*D23),0) -> 100000 | G23: =+O$10+IF($E23<20000,$E23*O$14,20000*O$14+($E23-20000)*O$16)+IF($B23>50,($B23-50)*O$22,0) -> 8863.999323 | I23: =+Q$10+IF($E23<20000,$E23*Q$14,20000*Q$14+($E23-20000)*Q$16)+IF($B23>50,($B23-50)*Q$22,0) -> 9188.991001 | K23: =ROUND((+I23-G23)/G23,3) -> 0.037
B24: =+B23 -> 200 | D24: 700 | E24: =ROUND((B$22*D24),0) -> 140000 | G24: =+O$10+IF($E24<20000,$E24*O$14,20000*O$14+($E24-20000)*O$16)+IF($B24>50,($B24-50)*O$22,0) -> 11760.65399 | I24: =+Q$10+IF($E24<20000,$E24*Q$14,20000*Q$14+($E24-20000)*Q$16)+IF($B24>50,($B24-50)*Q$22,0) -> 12180.5615 | K24: =ROUND((+I24-G24)/G24,3) -> 0.036 | N24: kVarh | O24: =+O36 -> 0.00283 | P24: =+N24 -> kVarh | Q24: =+Q36 -> 0.003 | S24: =(Q24-O24)/O24 -> 0.06007067138
B26: 250 | D26: 300 | E26: =ROUND((B$26*D26),0) -> 75000 | G26: =+O$10+IF($E26<20000,$E26*O$14,20000*O$14+($E26-20000)*O$16)+IF($B26>50,($B26-50)*O$22,0) -> 7430.59016 | I26: =+Q$10+IF($E26<20000,$E26*Q$14,20000*Q$14+($E26-20000)*Q$16)+IF($B26>50,($B26-50)*Q$22,0) -> 7718.759438 | K26: =ROUND((+I26-G26)/G26,3) -> 0.039
B27: =+B26 -> 250 | D27: 500 | E27: =ROUND((B$26*D27),0) -> 125000 | G27: =+O$10+IF($E27<20000,$E27*O$14,20000*O$14+($E27-20000)*O$16)+IF($B27>50,($B27-50)*O$22,0) -> 11051.40849 | I27: =+Q$10+IF($E27<20000,$E27*Q$14,20000*Q$14+($E27-20000)*Q$16)+IF($B27>50,($B27-50)*Q$22,0) -> 11458.22256 | K27: =ROUND((+I27-G27)/G27,3) -> 0.037 | N27: =+N10 -> Basic Charge | O27: 51.67 | Q27: 54.83
B28: =+B27 -> 250 | D28: 700 | E28: =ROUND((B$26*D28),0) -> 175000 | G28: =+O$10+IF($E28<20000,$E28*O$14,20000*O$14+($E28-20000)*O$16)+IF($B28>50,($B28-50)*O$22,0) -> 14672.22681 | I28: =+Q$10+IF($E28<20000,$E28*Q$14,20000*Q$14+($E28-20000)*Q$16)+IF($B28>50,($B28-50)*Q$22,0) -> 15197.68569 | K28: =ROUND((+I28-G28)/G28,3) -> 0.036 | N28: =+N12 -> Winter kWh - First 20,000 | O28: 0.089583 | Q28: 0.09507
N29: =+N13 -> Summer kWh - First 20,000 | O29: 0.08143 | Q29: 0.086416
B30: 300 | D30: 300 | E30: =ROUND((B$30*D30),0) -> 90000 | G30: =+O$10+IF($E30<20000,$E30*O$14,20000*O$14+($E30-20000)*O$16)+IF($B30>50,($B30-50)*O$22,0) -> 8893.835658 | I30: =+Q$10+IF($E30<20000,$E30*Q$14,20000*Q$14+($E30-20000)*Q$16)+IF($B30>50,($B30-50)*Q$22,0) -> 9240.098376 | K30: =ROUND((+I30-G30)/G30,3) -> 0.039 | N30: =+N14 -> Average kWh - First 20,000 | O30: 0.085591 | Q30: 0.090832
B31: =+B30 -> 300 | D31: 500 | E31: =ROUND((B$30*D31),0) -> 150000 | G31: =+O$10+IF($E31<20000,$E31*O$14,20000*O$14+($E31-20000)*O$16)+IF($B31>50,($B31-50)*O$22,0) -> 13238.81765 | I31: =+Q$10+IF($E31<20000,$E31*Q$14,20000*Q$14+($E31-20000)*Q$16)+IF($B31>50,($B31-50)*Q$22,0) -> 13727.45413 | K31: =ROUND((+I31-G31)/G31,3) -> 0.037 | N31: =+N16 -> kWh - All Over 20,000 | O31: 0.064072 | Q31: 0.067995
B32: =+B31 -> 300 | D32: 700 | E32: =ROUND((B$30*D32),0) -> 210000 | G32: =+O$10+IF($E32<20000,$E32*O$14,20000*O$14+($E32-20000)*O$16)+IF($B32>50,($B32-50)*O$22,0) -> 17583.79964 | I32: =+Q$10+IF($E32<20000,$E32*Q$14,20000*Q$14+($E32-20000)*Q$16)+IF($B32>50,($B32-50)*Q$22,0) -> 18214.80988 | K32: =ROUND((+I32-G32)/G32,3) -> 0.036 | N32: =+N18 -> kW - First 50 | O32: 0 | Q32: 0
N33: =+N20 -> Winter kW - Over 50 | O33: 9.01 | Q33: 9.56
B34: 350 | D34: 300 | E34: =ROUND((B$34*D34),0) -> 105000 | G34: =+O$10+IF($E34<20000,$E34*O$14,20000*O$14+($E34-20000)*O$16)+IF($B34>50,($B34-50)*O$22,0) -> 10357.08116 | I34: =+Q$10+IF($E34<20000,$E34*Q$14,20000*Q$14+($E34-20000)*Q$16)+IF($B34>50,($B34-50)*Q$22,0) -> 10761.43731 | K34: =ROUND((+I34-G34)/G34,3) -> 0.039 | N34: =+N21 -> Summer kW - Over 50 | O34: 6.01 | Q34: 6.38
B35: =+B34 -> 350 | D35: 500 | E35: =ROUND((B$34*D35),0) -> 175000 | G35: =+O$10+IF($E35<20000,$E35*O$14,20000*O$14+($E35-20000)*O$16)+IF($B35>50,($B35-50)*O$22,0) -> 15426.22681 | I35: =+Q$10+IF($E35<20000,$E35*Q$14,20000*Q$14+($E35-20000)*Q$16)+IF($B35>50,($B35-50)*Q$22,0) -> 15996.68569 | K35: =ROUND((+I35-G35)/G35,3) -> 0.037 | N35: Average kW - Over 50 | O35: 7.53 | Q35: 7.99
B36: =+B35 -> 350 | D36: 700 | E36: =ROUND((B$34*D36),0) -> 245000 | G36: =+O$10+IF($E36<20000,$E36*O$14,20000*O$14+($E36-20000)*O$16)+IF($B36>50,($B36-50)*O$22,0) -> 20495.37247 | I36: =+Q$10+IF($E36<20000,$E36*Q$14,20000*Q$14+($E36-20000)*Q$16)+IF($B36>50,($B36-50)*Q$22,0) -> 21231.93407 | K36: =ROUND((+I36-G36)/G36,3) -> 0.036 | N36: =+N24 -> kVarh | O36: 0.00283 | Q36: 0.003
B39: Notes: | N39: Schedule 95 - PCA | O39: -0.003062633456 | Q39: 0
B40: 1 Includes Rider Schedules 95A, 95, 120, 129, 132, 137, 140, 141 and 142 | N40: Schedule 95A - Fed Inc Credit | O40: -0.002058 | Q40: =+O40 -> -0.002058
B41: 2 Average Non-Seasonal Energy and Demand Rates | N41: Schedule 120 - Conservation | O41: 0.004499 | Q41: 0.004499
N42: Schedule 129 - Low Income | O42: 0.000777 | Q42: 0.000777
N43: Schedule 132 - Merger Credit | O43: -0.00024 | Q43: -0.00024
N44: Schedule 137 - REC | O44: 0 | Q44: 0
N45: Schedule 140 - Property Tax | O45: 0.002282 | Q45: 0.002282
N46: Schedule 141 - ERF - Basic | O46: 2.6 | Q46: 0
N47: Schedule 141 - ERF - Demand | O47: 0.01 | Q47: 0
N48: Schedule 141 - ERF - Winter kWh First 20,000 | O48: 0.001394 | Q48: 0
N49: Schedule 141 - ERF - Summer kWh First 20,000 | O49: 0.00126 | Q49: 0
N50: Schedule 141 - ERF - kWh Over 20,000 | O50: 0.000991 | Q50: 0
N51: Schedule 142 - Decoupling | O51: 0.005156 | Q51: 0.001335
N52: Schedule 149 - CRM | O52: 0 | Q52: 0.0001992625114
N54: Overall: | O54: 0.06122684036

Sheet Exhibit No.__(JAP-Sch 26 Imp)
B1: Puget Sound Energy
B2: Monthly Billing Comparison
B3: Schedule 26
B4: Secondary Voltage General Service, Large Demand Over 350 kW
B6: kW | G6: Monthly Billing 1, 2
B7: Load Size/ | D7: kWh per kW | G7: Present | I7: Proposed | K7: Percent
B8: Demand | D8: (Equiv Hours) | E8: kWh | G8: Schedule 26 | I8: Schedule 26 | K8: Difference | N8: Net Present Price | P8: Net Proposed Price
B10: 350 | D10: 300 | E10: =ROUND((B$10*D10),0) -> 105000 | G10: =+O$10+$B10*O$16+$E10*O$12 -> 10225.39542 | I10: =+Q$10+$B10*Q$16+$E10*Q$12 -> 10534.02176 | K10: =ROUND((+I10-G10)/G10,3) -> 0.03 | N10: Basic Charge | O10: =SUM(O21,O35) -> 110.46 | P10: =+N10 -> Basic Charge | Q10: =SUM(Q21,Q35) -> 110.86 | S10: =(Q10-O10)/O10 -> 0.003621220351
B11: =+B10 -> 350 | D11: 500 | E11: =ROUND((B$10*D11),0) -> 175000 | G11: =+O$10+$B11*O$16+$E11*O$12 -> 14346.01904 | I11: =+Q$10+$B11*Q$16+$E11*Q$12 -> 15107.46294 | K11: =ROUND((+I11-G11)/G11,3) -> 0.053
B12: =+B11 -> 350 | D12: 700 | E12: =ROUND((B$10*D12),0) -> 245000 | G12: =+O$10+$B12*O$16+$E12*O$12 -> 18466.64265 | I12: =+Q$10+$B12*Q$16+$E12*Q$12 -> 19680.90411 | K12: =ROUND((+I12-G12)/G12,3) -> 0.066 | N12: kWh - All | O12: =SUM(O22,O28:O34,O40) -> 0.05886605164 | P12: =+N12 -> kWh - All | Q12: =SUM(Q22,Q28:Q34,Q40) -> 0.06533487392 | S12: =(Q12-O12)/O12 -> 0.1098905413
B14: =+B12+50 -> 400 | D14: 300 | E14: =ROUND((B$14*D14),0) -> 120000 | G14: =+O$10+$B14*O$16+$E14*O$12 -> 11670.3862 | I14: =+Q$10+$B14*Q$16+$E14*Q$12 -> 12023.04487 | K14: =ROUND((+I14-G14)/G14,3) -> 0.03 | N14: Winter kW | O14: =SUM(O23,O36,O39) -> 13.31 | P14: =+N14 -> Winter kW | Q14: =SUM(Q23,Q36,Q39) -> 12.31 | S14: =(Q14-O14)/O14 -> -0.07513148009
B15: =+B14 -> 400 | D15: 500 | E15: =ROUND((B$14*D15),0) -> 200000 | G15: =+O$10+$B15*O$16+$E15*O$12 -> 16379.67033 | I15: =+Q$10+$B15*Q$16+$E15*Q$12 -> 17249.83478 | K15: =ROUND((+I15-G15)/G15,3) -> 0.053 | N15: Summer kW | O15: =SUM(O24,O37,O39) -> 9.26 | P15: =+N15 -> Summer kW | Q15: =SUM(Q24,Q37,Q39) -> 8.16 | S15: =(Q15-O15)/O15 -> -0.1187904968
B16: =+B15 -> 400 | D16: 700 | E16: =ROUND((B$14*D16),0) -> 280000 | G16: =+O$10+$B16*O$16+$E16*O$12 -> 21088.95446 | I16: =+Q$10+$B16*Q$16+$E16*Q$12 -> 22476.6247 | K16: =ROUND((+I16-G16)/G16,3) -> 0.066 | N16: Average kW | O16: =ROUND(SUM(O25,O39:O39)+AVERAGE(O36:O37),2) -> 11.24 | P16: =+N16 -> Average kW | Q16: =ROUND(SUM(Q25,Q39:Q39)+AVERAGE(Q36:Q37),2) -> 10.18 | S16: =(Q16-O16)/O16 -> -0.09430604982
B18: =+B16+100 -> 500 | D18: 300 | E18: =ROUND((B$18*D18),0) -> 150000 | G18: =+O$10+$B18*O$16+$E18*O$12 -> 14560.36775 | I18: =+Q$10+$B18*Q$16+$E18*Q$12 -> 15001.09109 | K18: =ROUND((+I18-G18)/G18,3) -> 0.03 | N18: kVarh | O18: =SUM(O26,O38) -> 0.00127 | P18: =+N18 -> kVarh | Q18: =SUM(Q26,Q38) -> 0.00132 | S18: =(Q18-O18)/O18 -> 0.03937007874
B19: =+B18 -> 500 | D19: 500 | E19: =ROUND((B$18*D19),0) -> 250000 | G19: =+O$10+$B19*O$16+$E19*O$12 -> 20446.97291 | I19: =+Q$10+$B19*Q$16+$E19*Q$12 -> 21534.57848 | K19: =ROUND((+I19-G19)/G19,3) -> 0.053
B20: =+B19 -> 500 | D20: 700 | E20: =ROUND((B$18*D20),0) -> 350000 | G20: =+O$10+$B20*O$16+$E20*O$12 -> 26333.57807 | I20: =+Q$10+$B20*Q$16+$E20*Q$12 -> 28068.06587 | K20: =ROUND((+I20-G20)/G20,3) -> 0.066
N21: =+N10 -> Basic Charge | O21: 104.46 | Q21: 110.86
B22: =+B20+100 -> 600 | D22: 300 | E22: =ROUND((B$22*D22),0) -> 180000 | G22: =+O$10+$B22*O$16+$E22*O$12 -> 17450.3493 | I22: =+Q$10+$B22*Q$16+$E22*Q$12 -> 17979.13731 | K22: =ROUND((+I22-G22)/G22,3) -> 0.03 | N22: =+N12 -> kWh - All | O22: 0.056733 | Q22: 0.05995
B23: =+B22 -> 600 | D23: 500 | E23: =ROUND((B$22*D23),0) -> 300000 | G23: =+O$10+$B23*O$16+$E23*O$12 -> 24514.27549 | I23: =+Q$10+$B23*Q$16+$E23*Q$12 -> 25819.32218 | K23: =ROUND((+I23-G23)/G23,3) -> 0.053 | N23: =+N14 -> Winter kW | O23: 11.65 | Q23: 12.48
B24: =+B23 -> 600 | D24: 700 | E24: =ROUND((B$22*D24),0) -> 420000 | G24: =+O$10+$B24*O$16+$E24*O$12 -> 31578.20169 | I24: =+Q$10+$B24*Q$16+$E24*Q$12 -> 33659.50705 | K24: =ROUND((+I24-G24)/G24,3) -> 0.066 | N24: =+N15 -> Summer kW | O24: 7.76 | Q24: 8.33
N25: =+N16 -> Average kW | O25: 9.66 | Q25: 10.35
B26: =+B24+100 -> 700 | D26: 300 | E26: =ROUND((B$26*D26),0) -> 210000 | G26: =+O$10+$B26*O$16+$E26*O$12 -> 20340.33084 | I26: =+Q$10+$B26*Q$16+$E26*Q$12 -> 20957.18352 | K26: =ROUND((+I26-G26)/G26,3) -> 0.03 | N26: =+N18 -> kVarh | O26: 0.00124 | Q26: 0.00132
B27: =+B26 -> 700 | D27: 500 | E27: =ROUND((B$26*D27),0) -> 350000 | G27: =+O$10+$B27*O$16+$E27*O$12 -> 28581.57807 | I27: =+Q$10+$B27*Q$16+$E27*Q$12 -> 30104.06587 | K27: =ROUND((+I27-G27)/G27,3) -> 0.053
B28: =+B27 -> 700 | D28: 700 | E28: =ROUND((B$26*D28),0) -> 490000 | G28: =+O$10+$B28*O$16+$E28*O$12 -> 36822.8253 | I28: =+Q$10+$B28*Q$16+$E28*Q$12 -> 39250.94822 | K28: =ROUND((+I28-G28)/G28,3) -> 0.066 | N28: Schedule 95 - PCA | O28: -0.003158948359 | Q28: 0
N29: Schedule 95A - Fed Inc Credit | O29: -0.00218 | Q29: =+O29 -> -0.00218
B30: =+B28+100 -> 800 | D30: 300 | E30: =ROUND((B$30*D30),0) -> 240000 | G30: =+O$10+$B30*O$16+$E30*O$12 -> 23230.31239 | I30: =+Q$10+$B30*Q$16+$E30*Q$12 -> 23935.22974 | K30: =ROUND((+I30-G30)/G30,3) -> 0.03 | N30: Schedule 120 - Conservation | O30: 0.0048 | Q30: 0.0048
B31: =+B30 -> 800 | D31: 500 | E31: =ROUND((B$30*D31),0) -> 400000 | G31: =+O$10+$B31*O$16+$E31*O$12 -> 32648.88066 | I31: =+Q$10+$B31*Q$16+$E31*Q$12 -> 34388.80957 | K31: =ROUND((+I31-G31)/G31,3) -> 0.053 | N31: Schedule 129 - Low Income | O31: 0.00071 | Q31: 0.00071
B32: =+B31 -> 800 | D32: 700 | E32: =ROUND((B$30*D32),0) -> 560000 | G32: =+O$10+$B32*O$16+$E32*O$12 -> 42067.44892 | I32: =+Q$10+$B32*Q$16+$E32*Q$12 -> 44842.38939 | K32: =ROUND((+I32-G32)/G32,3) -> 0.066 | N32: Schedule 132 - Merger Credit | O32: -0.000209 | Q32: -0.000209
N33: Schedule 137 - REC | O33: 0 | Q33: 0
B34: =+B32+200 -> 1000 | D34: 300 | E34: =ROUND((B$34*D34),0) -> 300000 | G34: =+O$10+$B34*O$16+$E34*O$12 -> 29010.27549 | I34: =+Q$10+$B34*Q$16+$E34*Q$12 -> 29891.32218 | K34: =ROUND((+I34-G34)/G34,3) -> 0.03 | N34: Schedule 140 - Property Tax | O34: 0.002171 | Q34: 0.002171
B35: =+B34 -> 1000 | D35: 500 | E35: =ROUND((B$34*D35),0) -> 500000 | G35: =+O$10+$B35*O$16+$E35*O$12 -> 40783.48582 | I35: =+Q$10+$B35*Q$16+$E35*Q$12 -> 42958.29696 | K35: =ROUND((+I35-G35)/G35,3) -> 0.053 | N35: Schedule 141 - ERF - Basic | O35: 6 | Q35: 0
B36: =+B35 -> 1000 | D36: 700 | E36: =ROUND((B$34*D36),0) -> 700000 | G36: =+O$10+$B36*O$16+$E36*O$12 -> 52556.69615 | I36: =+Q$10+$B36*Q$16+$E36*Q$12 -> 56025.27174 | K36: =ROUND((+I36-G36)/G36,3) -> 0.066 | N36: Schedule 141 - ERF - Demand Winter | O36: 0.49 | Q36: 0
N37: Schedule 141 - ERF - Demand Summer | O37: 0.33 | Q37: 0
N38: Schedule 141 - ERF - Reactive Power | O38: 3e-05 | Q38: 0
B39: Notes: | N39: Schedule 142 - Decoupling kW | O39: 1.17 | Q39: -0.17
B40: 1 Includes Rider Schedules 95A, 95, 120, 129, 132, 137, 140, 141 and 142 | N40: Schedule 149 - CRM | O40: 0 | Q40: 9.287391773e-05
B41: 2 Average Non-Seasonal Energy and Demand Rates
N42: Overall: | O42: 0.06121799146

Sheet Exhibit No.__(JAP-Sch 29 Imp)
B1: Puget Sound Energy
B2: Monthly Billing Comparison
B3: Schedule 29
B4: Secondary Voltage Irrigation & Pumping Service
B6: kW | G6: Monthly Billing 1, 2
B7: Load Size/ | D7: kWh per kW | G7: Present | I7: Proposed
B8: Demand | D8: (Equiv Hours) | E8: kWh | G8: Schedule 29 | I8: Schedule 29 | K8: % Change | N8: Net Present Price | P8: Net Proposed Price
B10: Single Phase | N10: Basic Charge (1 Phase) | O10: =SUM(O30,O51) -> 10.04 | P10: =+N10 -> Basic Charge (1 Phase) | Q10: =SUM(Q30,Q51) -> 10.15 | S10: =(Q10-O10)/O10 -> 0.0109561753
B11: 25 | D11: 200 | E11: =ROUND((B$11*D11),0) -> 5000 | G11: =ROUND(+O$10+IF(E11>20000,20000*O$15+(E11-20000)*O$19,E11*O$15)+IF(B11>50,(B11-50)*O$25,0),0) -> 348 | I11: =ROUND(+Q$10+IF(E11>20000,20000*Q$15+(E11-20000)*Q$19,E11*Q$15)+IF(B11>50,(B11-50)*Q$25,0),0) -> 358 | K11: =ROUND((I11-G11)/G11,4) -> 0.0287 | N11: Basic Charge (3 Phase) | O11: =SUM(O31,O52) -> 25.5 | P11: =+N11 -> Basic Charge (3 Phase) | Q11: =SUM(Q31,Q52) -> 25.77 | S11: =(Q11-O11)/O11 -> 0.01058823529
B12: =+B11 -> 25 | D12: 300 | E12: =ROUND((B$11*D12),0) -> 7500 | G12: =ROUND(+O$10+IF(E12>20000,20000*O$15+(E12-20000)*O$19,E12*O$15)+IF(B12>50,(B12-50)*O$25,0),0) -> 518 | I12: =ROUND(+Q$10+IF(E12>20000,20000*Q$15+(E12-20000)*Q$19,E12*Q$15)+IF(B12>50,(B12-50)*Q$25,0),0) -> 533 | K12: =ROUND((I12-G12)/G12,4) -> 0.029
B13: =+B12 -> 25 | D13: 500 | E13: =ROUND((B$11*D13),0) -> 12500 | G13: =ROUND(+O$10+IF(E13>20000,20000*O$15+(E13-20000)*O$19,E13*O$15)+IF(B13>50,(B13-50)*O$25,0),0) -> 856 | I13: =ROUND(+Q$10+IF(E13>20000,20000*Q$15+(E13-20000)*Q$19,E13*Q$15)+IF(B13>50,(B13-50)*Q$25,0),0) -> 881 | K13: =ROUND((I13-G13)/G13,4) -> 0.0292 | N13: Winter kWh - First 20,000 | O13: =SUM(O32,O44:O50,O53,O57:O59) -> 0.09159979789 | P13: =+N13 -> Winter kWh - First 20,000 | Q13: =SUM(Q32,Q44:Q50,Q53,Q57:Q59) -> 0.094855461 | S13: =(Q13-O13)/O13 -> 0.03554225206
N14: Summer kWh - First 20,000 | O14: =SUM(O33,O44:O50,O54,O57:O59) -> 0.06369579789 | P14: =+N14 -> Summer kWh - First 20,000 | Q14: =SUM(Q33,Q44:Q50,Q54,Q57:Q59) -> 0.065664461 | S14: =(Q14-O14)/O14 -> 0.03090726815
B15: 50 | D15: 200 | E15: =ROUND((B$15*D15),0) -> 10000 | G15: =ROUND(+O$10+IF(E15>20000,20000*O$15+(E15-20000)*O$19,E15*O$15)+IF(B15>50,(B15-50)*O$25,0),0) -> 687 | I15: =ROUND(+Q$10+IF(E15>20000,20000*Q$15+(E15-20000)*Q$19,E15*Q$15)+IF(B15>50,(B15-50)*Q$25,0),0) -> 707 | K15: =ROUND((I15-G15)/G15,4) -> 0.0291 | N15: Average kWh | O15: =SUM(O34,O44:O50,O57:O59)+AVERAGE(O53:O54) -> 0.06766629789 | P15: =+N15 -> Average kWh | Q15: =SUM(Q34,Q44:Q50,Q57:Q59)+AVERAGE(Q53:Q54) -> 0.069667461 | S15: =(Q15-O15)/O15 -> 0.02957400017
B16: =+B15 -> 50 | D16: 300 | E16: =ROUND((B$15*D16),0) -> 15000 | G16: =ROUND(+O$10+IF(E16>20000,20000*O$15+(E16-20000)*O$19,E16*O$15)+IF(B16>50,(B16-50)*O$25,0),0) -> 1025 | I16: =ROUND(+Q$10+IF(E16>20000,20000*Q$15+(E16-20000)*Q$19,E16*Q$15)+IF(B16>50,(B16-50)*Q$25,0),0) -> 1055 | K16: =ROUND((I16-G16)/G16,4) -> 0.0293
B17: =+B16 -> 50 | D17: 500 | E17: =ROUND((B$15*D17),0) -> 25000 | G17: =ROUND(+O$10+IF(E17>20000,20000*O$15+(E17-20000)*O$19,E17*O$15)+IF(B17>50,(B17-50)*O$25,0),0) -> 1641 | I17: =ROUND(+Q$10+IF(E17>20000,20000*Q$15+(E17-20000)*Q$19,E17*Q$15)+IF(B17>50,(B17-50)*Q$25,0),0) -> 1689 | K17: =ROUND((I17-G17)/G17,4) -> 0.0293 | N17: Winter kWh - Over 20,000 | O17: =SUM(O35,O44:O50,O55,O57:O59) -> 0.06974179789 | P17: =+N17 -> Winter kWh - Over 20,000 | Q17: =SUM(Q35,Q44:Q50,Q55,Q57:Q59) -> 0.071989461 | S17: =(Q17-O17)/O17 -> 0.03222835048
N18: Summer kWh - Over 20,000 | O18: =SUM(O36,O44:O50,O56,O57:O59) -> 0.05468079789 | P18: =+N18 -> Summer kWh - Over 20,000 | Q18: =SUM(Q36,Q44:Q50,Q56,Q57:Q59) -> 0.056233461 | S18: =(Q18-O18)/O18 -> 0.02839503382
B19: 75 | D19: 200 | E19: =ROUND((B$15*D19),0) -> 10000 | G19: =ROUND(+O$10+IF(E19>20000,20000*O$15+(E19-20000)*O$19,E19*O$15)+IF(B19>50,(B19-50)*O$25,0),0) -> 836 | I19: =ROUND(+Q$10+IF(E19>20000,20000*Q$15+(E19-20000)*Q$19,E19*Q$15)+IF(B19>50,(B19-50)*Q$25,0),0) -> 865 | K19: =ROUND((I19-G19)/G19,4) -> 0.0347 | N19: kWh - All Over 20,000 | O19: =SUM(O37,O44:O50,O57:O59)+AVERAGE(O55:O56) -> 0.05551879789 | P19: =+N19 -> kWh - All Over 20,000 | Q19: =SUM(Q37,Q44:Q50,Q57:Q59)+AVERAGE(Q55:Q56) -> 0.057009461 | S19: =(Q19-O19)/O19 -> 0.02684970068
B20: =+B19 -> 75 | D20: 300 | E20: =ROUND((B$15*D20),0) -> 15000 | G20: =ROUND(+O$10+IF(E20>20000,20000*O$15+(E20-20000)*O$19,E20*O$15)+IF(B20>50,(B20-50)*O$25,0),0) -> 1174 | I20: =ROUND(+Q$10+IF(E20>20000,20000*Q$15+(E20-20000)*Q$19,E20*Q$15)+IF(B20>50,(B20-50)*Q$25,0),0) -> 1213 | K20: =ROUND((I20-G20)/G20,4) -> 0.0332
B21: =+B20 -> 75 | D21: 500 | E21: =ROUND((B$15*D21),0) -> 25000 | G21: =ROUND(+O$10+IF(E21>20000,20000*O$15+(E21-20000)*O$19,E21*O$15)+IF(B21>50,(B21-50)*O$25,0),0) -> 1790 | I21: =ROUND(+Q$10+IF(E21>20000,20000*Q$15+(E21-20000)*Q$19,E21*Q$15)+IF(B21>50,(B21-50)*Q$25,0),0) -> 1847 | K21: =ROUND((I21-G21)/G21,4) -> 0.0318 | N21: kW - First 50 | O21: 0 | P21: =+N21 -> kW - First 50 | Q21: 0
B23: Three Phase | N23: Winter kW - Over 50 | O23: =SUM(O39) -> 8.83 | P23: =+N23 -> Winter kW - Over 50 | Q23: =SUM(Q39) -> 9.37 | S23: =(Q23-O23)/O23 -> 0.06115515289
B24: 100 | D24: 200 | E24: =ROUND((B$24*D24),0) -> 20000 | G24: =ROUND(+O$11+IF(E24>20000,20000*O$15+(E24-20000)*O$19,E24*O$15)+IF(B24>50,(B24-50)*O$25,0),0) -> 1677 | I24: =ROUND(+Q$11+IF(E24>20000,20000*Q$15+(E24-20000)*Q$19,E24*Q$15)+IF(B24>50,(B24-50)*Q$25,0),0) -> 1736 | K24: =ROUND((I24-G24)/G24,4) -> 0.0352 | N24: Summer kW - Over 50 | O24: =SUM(O40) -> 4.35 | P24: =+N24 -> Summer kW - Over 50 | Q24: =SUM(Q40) -> 4.62 | S24: =(Q24-O24)/O24 -> 0.06206896552
B25: =+B24 -> 100 | D25: 300 | E25: =ROUND((B$24*D25),0) -> 30000 | G25: =ROUND(+O$11+IF(E25>20000,20000*O$15+(E25-20000)*O$19,E25*O$15)+IF(B25>50,(B25-50)*O$25,0),0) -> 2232 | I25: =ROUND(+Q$11+IF(E25>20000,20000*Q$15+(E25-20000)*Q$19,E25*Q$15)+IF(B25>50,(B25-50)*Q$25,0),0) -> 2306 | K25: =ROUND((I25-G25)/G25,4) -> 0.0332 | N25: Average kW - Over 50 | O25: =SUM(O41) -> 5.96 | P25: =+N25 -> Average kW - Over 50 | Q25: =SUM(Q41) -> 6.33 | S25: =(Q25-O25)/O25 -> 0.06208053691
B26: =+B25 -> 100 | D26: 500 | E26: =ROUND((B$24*D26),0) -> 50000 | G26: =ROUND(+O$11+IF(E26>20000,20000*O$15+(E26-20000)*O$19,E26*O$15)+IF(B26>50,(B26-50)*O$25,0),0) -> 3342 | I26: =ROUND(+Q$11+IF(E26>20000,20000*Q$15+(E26-20000)*Q$19,E26*Q$15)+IF(B26>50,(B26-50)*Q$25,0),0) -> 3446 | K26: =ROUND((I26-G26)/G26,4) -> 0.0311
N27: kVarh | O27: =SUM(O42) -> 0.00281 | P27: =+N27 -> kVarh | Q27: =SUM(Q42) -> 0.00298 | S27: =(Q27-O27)/O27 -> 0.06049822064
B28: 150 | D28: 200 | E28: =ROUND((B$28*D28),0) -> 30000 | G28: =ROUND(+O$11+IF(E28>20000,20000*O$15+(E28-20000)*O$19,E28*O$15)+IF(B28>50,(B28-50)*O$25,0),0) -> 2530 | I28: =ROUND(+Q$11+IF(E28>20000,20000*Q$15+(E28-20000)*Q$19,E28*Q$15)+IF(B28>50,(B28-50)*Q$25,0),0) -> 2622 | K28: =ROUND((I28-G28)/G28,4) -> 0.0364
B29: =+B28 -> 150 | D29: 300 | E29: =ROUND((B$28*D29),0) -> 45000 | G29: =ROUND(+O$11+IF(E29>20000,20000*O$15+(E29-20000)*O$19,E29*O$15)+IF(B29>50,(B29-50)*O$25,0),0) -> 3363 | I29: =ROUND(+Q$11+IF(E29>20000,20000*Q$15+(E29-20000)*Q$19,E29*Q$15)+IF(B29>50,(B29-50)*Q$25,0),0) -> 3477 | K29: =ROUND((I29-G29)/G29,4) -> 0.0339
B30: =+B29 -> 150 | D30: 500 | E30: =ROUND((B$28*D30),0) -> 75000 | G30: =ROUND(+O$11+IF(E30>20000,20000*O$15+(E30-20000)*O$19,E30*O$15)+IF(B30>50,(B30-50)*O$25,0),0) -> 5028 | I30: =ROUND(+Q$11+IF(E30>20000,20000*Q$15+(E30-20000)*Q$19,E30*Q$15)+IF(B30>50,(B30-50)*Q$25,0),0) -> 5188 | K30: =ROUND((I30-G30)/G30,4) -> 0.0318 | N30: =+N10 -> Basic Charge (1 Phase) | O30: 9.56 | Q30: 10.15
N31: =+N11 -> Basic Charge (3 Phase) | O31: 24.28 | Q31: 25.77
B32: 200 | D32: 200 | E32: =ROUND((B$32*D32),0) -> 40000 | G32: =ROUND(+O$11+IF(E32>20000,20000*O$15+(E32-20000)*O$19,E32*O$15)+IF(B32>50,(B32-50)*O$25,0),0) -> 3383 | I32: =ROUND(+Q$11+IF(E32>20000,20000*Q$15+(E32-20000)*Q$19,E32*Q$15)+IF(B32>50,(B32-50)*Q$25,0),0) -> 3509 | K32: =ROUND((I32-G32)/G32,4) -> 0.0372 | N32: =+N13 -> Winter kWh - First 20,000 | O32: 0.089583 | Q32: 0.095068
B33: =+B32 -> 200 | D33: 300 | E33: =ROUND((B$32*D33),0) -> 60000 | G33: =ROUND(+O$11+IF(E33>20000,20000*O$15+(E33-20000)*O$19,E33*O$15)+IF(B33>50,(B33-50)*O$25,0),0) -> 4494 | I33: =ROUND(+Q$11+IF(E33>20000,20000*Q$15+(E33-20000)*Q$19,E33*Q$15)+IF(B33>50,(B33-50)*Q$25,0),0) -> 4649 | K33: =ROUND((I33-G33)/G33,4) -> 0.0345 | N33: =+N14 -> Summer kWh - First 20,000 | O33: 0.062076 | Q33: 0.065877
B34: =+B33 -> 200 | D34: 500 | E34: =ROUND((B$32*D34),0) -> 100000 | G34: =ROUND(+O$11+IF(E34>20000,20000*O$15+(E34-20000)*O$19,E34*O$15)+IF(B34>50,(B34-50)*O$25,0),0) -> 6714 | I34: =ROUND(+Q$11+IF(E34>20000,20000*Q$15+(E34-20000)*Q$19,E34*Q$15)+IF(B34>50,(B34-50)*Q$25,0),0) -> 6929 | K34: =ROUND((I34-G34)/G34,4) -> 0.032 | N34: =+N15 -> Average kWh | O34: 0.065848 | Q34: 0.06988
N35: =+N17 -> Winter kWh - Over 20,000 | O35: 0.068036 | Q35: 0.072202
B36: 300 | D36: 200 | E36: =ROUND((B$36*D36),0) -> 60000 | G36: =ROUND(+O$11+IF(E36>20000,20000*O$15+(E36-20000)*O$19,E36*O$15)+IF(B36>50,(B36-50)*O$25,0),0) -> 5090 | I36: =ROUND(+Q$11+IF(E36>20000,20000*Q$15+(E36-20000)*Q$19,E36*Q$15)+IF(B36>50,(B36-50)*Q$25,0),0) -> 5282 | K36: =ROUND((I36-G36)/G36,4) -> 0.0377 | N36: =+N18 -> Summer kWh - Over 20,000 | O36: 0.053189 | Q36: 0.056446
B37: =+B36 -> 300 | D37: 300 | E37: =ROUND((B$36*D37),0) -> 90000 | G37: =ROUND(+O$11+IF(E37>20000,20000*O$15+(E37-20000)*O$19,E37*O$15)+IF(B37>50,(B37-50)*O$25,0),0) -> 6755 | I37: =ROUND(+Q$11+IF(E37>20000,20000*Q$15+(E37-20000)*Q$19,E37*Q$15)+IF(B37>50,(B37-50)*Q$25,0),0) -> 6992 | K37: =ROUND((I37-G37)/G37,4) -> 0.0351 | N37: =+N19 -> kWh - All Over 20,000 | O37: 0.05392 | Q37: 0.057222
B38: =+B37 -> 300 | D38: 500 | E38: =ROUND((B$36*D38),0) -> 150000 | G38: =ROUND(+O$11+IF(E38>20000,20000*O$15+(E38-20000)*O$19,E38*O$15)+IF(B38>50,(B38-50)*O$25,0),0) -> 10086 | I38: =ROUND(+Q$11+IF(E38>20000,20000*Q$15+(E38-20000)*Q$19,E38*Q$15)+IF(B38>50,(B38-50)*Q$25,0),0) -> 10413 | K38: =ROUND((I38-G38)/G38,4) -> 0.0324 | N38: =+N21 -> kW - First 50 | O38: 0 | Q38: 0
N39: =+N23 -> Winter kW - Over 50 | O39: 8.83 | Q39: 9.37
N40: =+N24 -> Summer kW - Over 50 | O40: 4.35 | Q40: 4.62
N41: =+N25 -> Average kW - Over 50 | O41: 5.96 | Q41: 6.33
B42: Notes: | N42: =+N27 -> kVarh | O42: 0.00281 | Q42: 0.00298
B43: 1 Includes Rider Schedules 95A, 95, 120, 129, 132, 137, 140, 141, 142 and 194
B44: 2 Average Non-Seasonal Energy and Demand Rates | N44: Schedule 95 - PCA | O44: -0.002882663105 | Q44: 0
N45: Schedule 95A - Fed Inc Credit | O45: -0.002083 | Q45: =+O45 -> -0.002083
N46: Schedule 120 - Conservation | O46: 0.00458 | Q46: 0.00458
N47: Schedule 129 - Low Income | O47: 0.000707 | Q47: 0.000707
N48: Schedule 132 - Merger Credit | O48: -0.00024 | Q48: -0.00024
N49: Schedule 137 - REC | O49: 0 | Q49: 0
N50: Schedule 140 - Property Tax | O50: 0.002282 | Q50: 0.002282
N51: Schedule 141 - ERF - Basic 1 Phase | O51: 0.48 | Q51: 0
N52: Schedule 141 - ERF - Basic 3 phase | O52: 1.22 | Q52: 0
N53: Schedule 141 - ERF - Winter kWh First 20,000 | O53: 0.001291 | Q53: 0
N54: Schedule 141 - ERF - Summer kWh First 20,000 | O54: 0.000894 | Q54: 0
N55: Schedule 141 - ERF - Winter kWh Over 20,000 | O55: 0.00098 | Q55: 0
N56: Schedule 141 - ERF - Summer kWh Over 20,000 | O56: 0.000766 | Q56: 0
N57: Schedule 142 - Decoupling | O57: 0.005156 | Q57: 0.001335
N58: Schedule 149 - CRM | O58: 0 | Q58: 0
N59: Schedule 194 - BPA Exchange Credit | O59: -0.006793539 | Q59: =+O59 -> -0.006793539
N61: Overall: | O61: 0.06126499236

Sheet Exhibit No.__(JAP-Sch 31 Imp)
B1: Puget Sound Energy
B2: Monthly Billing Comparison
B3: Schedule 31
B4: Primary Voltage General Service
B6: kW | G6: Monthly Billing 1, 2
B7: Load Size/ | D7: kWh per kW | G7: Present | I7: Proposed | K7: Percent
B8: Demand | D8: (Equiv Hours) | E8: kWh | G8: Schedule 31 | I8: Schedule 31 | K8: Difference | N8: Net Present Price | P8: Net Proposed Price
B10: 350 | D10: 300 | E10: =ROUND((B$10*D10),0) -> 105000 | G10: =+O$10+$B10*O$16+$E10*O$12 -> 10115.65508 | I10: =+Q$10+$B10*Q$16+$E10*Q$12 -> 10433.18548 | K10: =ROUND((+I10-G10)/G10,3) -> 0.031 | N10: Basic Charge | O10: =SUM(O21,O35) -> 356.91 | P10: =+N10 -> Basic Charge | Q10: =SUM(Q21,Q35) -> 360.3 | S10: =(Q10-O10)/O10 -> 0.009498192822
B11: =+B10 -> 350 | D11: 500 | E11: =ROUND((B$10*D11),0) -> 175000 | G11: =+O$10+$B11*O$16+$E11*O$12 -> 14078.1518 | I11: =+Q$10+$B11*Q$16+$E11*Q$12 -> 14833.7758 | K11: =ROUND((+I11-G11)/G11,3) -> 0.054
B12: =+B11 -> 350 | D12: 700 | E12: =ROUND((B$10*D12),0) -> 245000 | G12: =+O$10+$B12*O$16+$E12*O$12 -> 18040.64853 | I12: =+Q$10+$B12*Q$16+$E12*Q$12 -> 19234.36613 | K12: =ROUND((+I12-G12)/G12,3) -> 0.066 | N12: kWh - All | O12: =SUM(O22,O28:O34,O40) -> 0.05660709602 | P12: =+N12 -> kWh - All | Q12: =SUM(Q22,Q28:Q34,Q40) -> 0.06286557602 | S12: =(Q12-O12)/O12 -> 0.1105599906
B14: =+B12+50 -> 400 | D14: 300 | E14: =ROUND((B$14*D14),0) -> 120000 | G14: =+O$10+$B14*O$16+$E14*O$12 -> 11509.76152 | I14: =+Q$10+$B14*Q$16+$E14*Q$12 -> 11872.16912 | K14: =ROUND((+I14-G14)/G14,3) -> 0.031 | N14: Winter kW | O14: =SUM(O23,O36,O39:O39) -> 12.9 | P14: =+N14 -> Winter kW | Q14: =SUM(Q23,Q36,Q39:Q39) -> 11.97 | S14: =(Q14-O14)/O14 -> -0.07209302326
B15: =+B14 -> 400 | D15: 500 | E15: =ROUND((B$14*D15),0) -> 200000 | G15: =+O$10+$B15*O$16+$E15*O$12 -> 16038.3292 | I15: =+Q$10+$B15*Q$16+$E15*Q$12 -> 16901.4152 | K15: =ROUND((+I15-G15)/G15,3) -> 0.054 | N15: Summer kW | O15: =SUM(O24,O37,O39:O39) -> 8.98 | P15: =+N15 -> Summer kW | Q15: =SUM(Q24,Q37,Q39:Q39) -> 7.97 | S15: =(Q15-O15)/O15 -> -0.1124721604
B16: =+B15 -> 400 | D16: 700 | E16: =ROUND((B$14*D16),0) -> 280000 | G16: =+O$10+$B16*O$16+$E16*O$12 -> 20566.89689 | I16: =+Q$10+$B16*Q$16+$E16*Q$12 -> 21930.66129 | K16: =ROUND((+I16-G16)/G16,3) -> 0.066 | N16: Average kW | O16: =ROUND(SUM(O25,O39:O39)+AVERAGE(O36:O37),2) -> 10.9 | P16: =+N16 -> Average kW | Q16: =ROUND(SUM(Q25,Q39:Q39)+AVERAGE(Q36:Q37),2) -> 9.92 | S16: =(Q16-O16)/O16 -> -0.08990825688
B18: =+B16+100 -> 500 | D18: 300 | E18: =ROUND((B$18*D18),0) -> 150000 | G18: =+O$10+$B18*O$16+$E18*O$12 -> 14297.9744 | I18: =+Q$10+$B18*Q$16+$E18*Q$12 -> 14750.1364 | K18: =ROUND((+I18-G18)/G18,3) -> 0.032 | N18: kVarh | O18: =SUM(O26,O38) -> 0.00109 | P18: =+N18 -> kVarh | Q18: =SUM(Q26,Q38) -> 0.00112 | S18: =(Q18-O18)/O18 -> 0.02752293578
B19: =+B18 -> 500 | D19: 500 | E19: =ROUND((B$18*D19),0) -> 250000 | G19: =+O$10+$B19*O$16+$E19*O$12 -> 19958.68401 | I19: =+Q$10+$B19*Q$16+$E19*Q$12 -> 21036.69401 | K19: =ROUND((+I19-G19)/G19,3) -> 0.054
B20: =+B19 -> 500 | D20: 700 | E20: =ROUND((B$18*D20),0) -> 350000 | G20: =+O$10+$B20*O$16+$E20*O$12 -> 25619.39361 | I20: =+Q$10+$B20*Q$16+$E20*Q$12 -> 27323.25161 | K20: =ROUND((+I20-G20)/G20,3) -> 0.067
N21: =+N10 -> Basic Charge | O21: 339.51 | Q21: 360.3
B22: =+B20+100 -> 600 | D22: 300 | E22: =ROUND((B$22*D22),0) -> 180000 | G22: =+O$10+$B22*O$16+$E22*O$12 -> 17086.18728 | I22: =+Q$10+$B22*Q$16+$E22*Q$12 -> 17628.10368 | K22: =ROUND((+I22-G22)/G22,3) -> 0.032 | N22: =+N12 -> kWh - All | O22: 0.054347 | Q22: 0.057683
B23: =+B22 -> 600 | D23: 500 | E23: =ROUND((B$22*D23),0) -> 300000 | G23: =+O$10+$B23*O$16+$E23*O$12 -> 23879.03881 | I23: =+Q$10+$B23*Q$16+$E23*Q$12 -> 25171.97281 | K23: =ROUND((+I23-G23)/G23,3) -> 0.054 | N23: =+N14 -> Winter kW | O23: 11.32 | Q23: 12.01
B24: =+B23 -> 600 | D24: 700 | E24: =ROUND((B$22*D24),0) -> 420000 | G24: =+O$10+$B24*O$16+$E24*O$12 -> 30671.89033 | I24: =+Q$10+$B24*Q$16+$E24*Q$12 -> 32715.84193 | K24: =ROUND((+I24-G24)/G24,3) -> 0.067 | N24: =+N15 -> Summer kW | O24: 7.55 | Q24: 8.01
N25: Average kW | O25: 9.39 | Q25: 9.96
B26: =+B24+100 -> 700 | D26: 300 | E26: =ROUND((B$26*D26),0) -> 210000 | G26: =+O$10+$B26*O$16+$E26*O$12 -> 19874.40016 | I26: =+Q$10+$B26*Q$16+$E26*Q$12 -> 20506.07097 | K26: =ROUND((+I26-G26)/G26,3) -> 0.032 | N26: =+N18 -> kVarh | O26: 0.00106 | Q26: 0.00112
B27: =+B26 -> 700 | D27: 500 | E27: =ROUND((B$26*D27),0) -> 350000 | G27: =+O$10+$B27*O$16+$E27*O$12 -> 27799.39361 | I27: =+Q$10+$B27*Q$16+$E27*Q$12 -> 29307.25161 | K27: =ROUND((+I27-G27)/G27,3) -> 0.054
B28: =+B27 -> 700 | D28: 700 | E28: =ROUND((B$26*D28),0) -> 490000 | G28: =+O$10+$B28*O$16+$E28*O$12 -> 35724.38705 | I28: =+Q$10+$B28*Q$16+$E28*Q$12 -> 38108.43225 | K28: =ROUND((+I28-G28)/G28,3) -> 0.067 | N28: Schedule 95 - PCA | O28: -0.002860903979 | Q28: 0
N29: Schedule 95A - Fed Inc Credit | O29: -0.002065 | Q29: =+O29 -> -0.002065
B30: =+B28+100 -> 800 | D30: 300 | E30: =ROUND((B$30*D30),0) -> 240000 | G30: =+O$10+$B30*O$16+$E30*O$12 -> 22662.61305 | I30: =+Q$10+$B30*Q$16+$E30*Q$12 -> 23384.03825 | K30: =ROUND((+I30-G30)/G30,3) -> 0.032 | N30: Schedule 120 - Conservation | O30: 0.004552 | Q30: 0.004552
B31: =+B30 -> 800 | D31: 500 | E31: =ROUND((B$30*D31),0) -> 400000 | G31: =+O$10+$B31*O$16+$E31*O$12 -> 31719.74841 | I31: =+Q$10+$B31*Q$16+$E31*Q$12 -> 33442.53041 | K31: =ROUND((+I31-G31)/G31,3) -> 0.054 | N31: Schedule 129 - Low Income | O31: 0.000705 | Q31: 0.000705
B32: =+B31 -> 800 | D32: 700 | E32: =ROUND((B$30*D32),0) -> 560000 | G32: =+O$10+$B32*O$16+$E32*O$12 -> 40776.88377 | I32: =+Q$10+$B32*Q$16+$E32*Q$12 -> 43501.02257 | K32: =ROUND((+I32-G32)/G32,3) -> 0.067 | N32: Schedule 132 - Merger Credit | O32: -0.000234 | Q32: -0.000234
N33: Schedule 137 - REC | O33: 0 | Q33: 0
B34: =+B32+200 -> 1000 | D34: 300 | E34: =ROUND((B$34*D34),0) -> 300000 | G34: =+O$10+$B34*O$16+$E34*O$12 -> 28239.03881 | I34: =+Q$10+$B34*Q$16+$E34*Q$12 -> 29139.97281 | K34: =ROUND((+I34-G34)/G34,3) -> 0.032 | N34: Schedule 140 - Property Tax | O34: 0.002163 | Q34: 0.002163
B35: =+B34 -> 1000 | D35: 500 | E35: =ROUND((B$34*D35),0) -> 500000 | G35: =+O$10+$B35*O$16+$E35*O$12 -> 39560.45801 | I35: =+Q$10+$B35*Q$16+$E35*Q$12 -> 41713.08801 | K35: =ROUND((+I35-G35)/G35,3) -> 0.054 | N35: Schedule 141 - ERF - Basic | O35: 17.4 | Q35: 0
B36: =+B35 -> 1000 | D36: 700 | E36: =ROUND((B$34*D36),0) -> 700000 | G36: =+O$10+$B36*O$16+$E36*O$12 -> 50881.87721 | I36: =+Q$10+$B36*Q$16+$E36*Q$12 -> 54286.20322 | K36: =ROUND((+I36-G36)/G36,3) -> 0.067 | N36: Schedule 141 - ERF - Demand Winter | O36: 0.45 | Q36: 0
N37: Schedule 141 - ERF - Demand Summer | O37: 0.3 | Q37: 0
N38: Schedule 141 - ERF - Reactive Power | O38: 3e-05 | Q38: 0
B39: Notes: | N39: Schedule 142 - Decoupling kW | O39: 1.13 | Q39: -0.04
B40: 1 Includes Rider Schedules 95A, 95, 120, 129, 132, 137, 140, 141 and 142 | N40: Schedule 149 - CRM | O40: 0 | Q40: 6.15760248e-05
B41: 2 Average Non-Seasonal Energy and Demand Rates
N42: Overall: | O42: 0.06121665418

Sheet Exhibit No.__(JAP-Sch 46 Imp)
B1: Puget Sound Energy
B2: Monthly Billing Comparison
B3: Schedule 46 - Interruptible Service -High Voltage
B9: kVa | G9: Monthly Billing 1
B10: Load Size/ | C10: kWh per kVa | G10: Present | I10: Proposed | K10: Percent
B11: Demand | C11: (Equiv Hours) | E11: kWh | G11: Price Schedule 46 | I11: Price Schedule 46 | K11: Difference | N11: Net Present Price | P11: Net Proposed Price
B13: 1000 | C13: 300 | E13: =ROUND((B$13*C13),0) -> 300000 | G13: =ROUND(IF($B$13>4400,$B$13*N$13,4400*$N$13)+$E13*N$14,0) -> 27447 | I13: =ROUND(IF($B$13>4400,$B$13*P$13,4400*$N$13)+$E13*P$14,0) -> 27993 | K13: =(I13-G13)/G13 -> 0.01989288447 | M13: Demand ($ per kVa) | N13: =SUM(N17) -> 2.09 | P13: =SUM(P17) -> 2.22 | R13: =(P13-N13)/N13 -> 0.06220095694
C14: 500 | E14: =ROUND((B$13*C14),0) -> 500000 | G14: =ROUND(IF($B$13>4400,$B$13*N$13,4400*$N$13)+$E14*N$14,0) -> 39614 | I14: =ROUND(IF($B$13>4400,$B$13*P$13,4400*$N$13)+$E14*P$14,0) -> 40525 | K14: =(I14-G14)/G14 -> 0.02299692028 | M14: Energy ($ per kWh) | N14: =SUM(N18,N20:N28) -> 0.06083611631 | P14: =SUM(P18,P20:P28) -> 0.062658 | R14: =(P14-N14)/N14 -> 0.02994740301
C15: 700 | E15: =ROUND((B$13*C15),0) -> 700000 | G15: =ROUND(IF($B$13>4400,$B$13*N$13,4400*$N$13)+$E15*N$14,0) -> 51781 | I15: =ROUND(IF($B$13>4400,$B$13*P$13,4400*$N$13)+$E15*P$14,0) -> 53057 | K15: =(I15-G15)/G15 -> 0.02464224329
B17: 2000 | C17: 300 | E17: =ROUND((B$17*C17),0) -> 600000 | G17: =ROUND(IF($B$17>4400,$B$17*N$13,4400*$N$13)+$E17*N$14,0) -> 45698 | I17: =ROUND(IF($B$17>4400,$B$17*P$13,4400*$N$13)+$E17*P$14,0) -> 46791 | K17: =(I17-G17)/G17 -> 0.02391789575 | M17: =+M13 -> Demand ($ per kVa) | N17: 2.09 | P17: 2.22
C18: 500 | E18: =ROUND((B$17*C18),0) -> 1000000 | G18: =ROUND(IF($B$17>4400,$B$17*N$13,4400*$N$13)+$E18*N$14,0) -> 70032 | I18: =ROUND(IF($B$17>4400,$B$17*P$13,4400*$N$13)+$E18*P$14,0) -> 71854 | K18: =(I18-G18)/G18 -> 0.02601667809 | M18: =+M14 -> Energy ($ per kWh) | N18: 0.054413 | P18: 0.057735
C19: 700 | E19: =ROUND((B$17*C19),0) -> 1400000 | G19: =ROUND(IF($B$17>4400,$B$17*N$13,4400*$N$13)+$E19*N$14,0) -> 94367 | I19: =ROUND(IF($B$17>4400,$B$17*P$13,4400*$N$13)+$E19*P$14,0) -> 96917 | K19: =(I19-G19)/G19 -> 0.02702215817
M20: Schedule 95 - PCA | N20: -0.002676883693 | P20: 0
B21: 4000 | C21: 300 | E21: =ROUND((B$21*C21),0) -> 1200000 | G21: =ROUND(IF($B$21>4400,$B$21*N$13,4400*$N$13)+$E21*N$14,0) -> 82199 | I21: =ROUND(IF($B$21>4400,$B$21*P$13,4400*$N$13)+$E21*P$14,0) -> 84386 | K21: =(I21-G21)/G21 -> 0.02660616309 | M21: Schedule 95A - Fed Inc Credit | N21: -0.001316 | P21: =+N21 -> -0.001316
C22: 500 | E22: =ROUND((B$21*C22),0) -> 2000000 | G22: =ROUND(IF($B$21>4400,$B$21*N$13,4400*$N$13)+$E22*N$14,0) -> 130868 | I22: =ROUND(IF($B$21>4400,$B$21*P$13,4400*$N$13)+$E22*P$14,0) -> 134512 | K22: =(I22-G22)/G22 -> 0.0278448513 | M22: Schedule 120 - Conservation | N22: 0.002917 | P22: 0.002917
C23: 700 | E23: =ROUND((B$21*C23),0) -> 2800000 | G23: =ROUND(IF($B$21>4400,$B$21*N$13,4400*$N$13)+$E23*N$14,0) -> 179537 | I23: =ROUND(IF($B$21>4400,$B$21*P$13,4400*$N$13)+$E23*P$14,0) -> 184638 | K23: =(I23-G23)/G23 -> 0.02841197079 | M23: Schedule 129 - Low Income | N23: 0.00061 | P23: 0.00061
M24: Schedule 132 - Merger Credit | N24: -8.5e-05 | P24: -8.5e-05
B25: 6000 | C25: 300 | E25: =ROUND((B$25*C25),0) -> 1800000 | G25: =ROUND(IF($B$25>4400,$B$25*N$13,4400*$N$13)+$E25*N$14,0) -> 122045 | I25: =ROUND(IF($B$25>4400,$B$25*P$13,4400*$N$13)+$E25*P$14,0) -> 126104 | K25: =(I25-G25)/G25 -> 0.03325822443 | M25: Schedule 137 - REC | N25: 0 | P25: 0
C26: 500 | E26: =ROUND((B$25*C26),0) -> 3000000 | G26: =ROUND(IF($B$25>4400,$B$25*N$13,4400*$N$13)+$E26*N$14,0) -> 195048 | I26: =ROUND(IF($B$25>4400,$B$25*P$13,4400*$N$13)+$E26*P$14,0) -> 201294 | K26: =(I26-G26)/G26 -> 0.03202288667 | M26: Schedule 140 - Property Tax | N26: 0.001462 | P26: 0.001462
C27: 700 | E27: =ROUND((B$25*C27),0) -> 4200000 | G27: =ROUND(IF($B$25>4400,$B$25*N$13,4400*$N$13)+$E27*N$14,0) -> 268052 | I27: =ROUND(IF($B$25>4400,$B$25*P$13,4400*$N$13)+$E27*P$14,0) -> 276484 | K27: =(I27-G27)/G27 -> 0.03145658305 | M27: Schedule 141 - ERF - Energy | N27: 0.000356 | P27: 0
M28: Schedule 142 - Decoupling kWh | N28: 0.005156 | P28: 0.001335
B29: 8000 | C29: 300 | E29: =ROUND((B$29*C29),0) -> 2400000 | G29: =ROUND(IF($B$29>4400,$B$29*N$13,4400*$N$13)+$E29*N$14,0) -> 162727 | I29: =ROUND(IF($B$29>4400,$B$29*P$13,4400*$N$13)+$E29*P$14,0) -> 168139 | K29: =(I29-G29)/G29 -> 0.0332581563
C30: 500 | E30: =ROUND((B$29*C30),0) -> 4000000 | G30: =ROUND(IF($B$29>4400,$B$29*N$13,4400*$N$13)+$E30*N$14,0) -> 260064 | I30: =ROUND(IF($B$29>4400,$B$29*P$13,4400*$N$13)+$E30*P$14,0) -> 268392 | K30: =(I30-G30)/G30 -> 0.03202288667
C31: 700 | E31: =ROUND((B$29*C31),0) -> 5600000 | G31: =ROUND(IF($B$29>4400,$B$29*N$13,4400*$N$13)+$E31*N$14,0) -> 357402 | I31: =ROUND(IF($B$29>4400,$B$29*P$13,4400*$N$13)+$E31*P$14,0) -> 368645 | K31: =(I31-G31)/G31 -> 0.03145757438
B33: 10000 | C33: 300 | E33: =ROUND((B$33*C33),0) -> 3000000 | G33: =ROUND(IF($B$33>4400,$B$33*N$13,4400*$N$13)+$E33*N$14,0) -> 203408 | I33: =ROUND(IF($B$33>4400,$B$33*P$13,4400*$N$13)+$E33*P$14,0) -> 210174 | K33: =(I33-G33)/G33 -> 0.03326319515
C34: 500 | E34: =ROUND((B$33*C34),0) -> 5000000 | G34: =ROUND(IF($B$33>4400,$B$33*N$13,4400*$N$13)+$E34*N$14,0) -> 325081 | I34: =ROUND(IF($B$33>4400,$B$33*P$13,4400*$N$13)+$E34*P$14,0) -> 335490 | K34: =(I34-G34)/G34 -> 0.03201971201
C35: 700 | E35: =ROUND((B$33*C35),0) -> 7000000 | G35: =ROUND(IF($B$33>4400,$B$33*N$13,4400*$N$13)+$E35*N$14,0) -> 446753 | I35: =ROUND(IF($B$33>4400,$B$33*P$13,4400*$N$13)+$E35*P$14,0) -> 460806 | K35: =(I35-G35)/G35 -> 0.0314558604
M36: Schedule 46 Overall: | N36: 0.06124455632
B39: Notes:
B40: 1 Includes Rider Schedules 95A, 95, 120, 129, 132, 137, 140, 141 and 142

Sheet Exhibit No.__(JAP-Sch 49 Imp)
B1: Puget Sound Energy
B2: Monthly Billing Comparison
B3: Schedule 49 - Large General Service -High Voltage
B9: kVa | G9: Monthly Billing 1
B10: Load Size/ | C10: kWh per kVa | G10: Present | I10: Proposed | K10: Percent
B11: Demand | C11: (Equiv Hours) | E11: kWh | G11: Price Schedule 49 | I11: Price Schedule 49 | K11: Difference | N11: Net Present Price | P11: Net Proposed Price
B13: 1000 | C13: 300 | E13: =ROUND((B$13*C13),0) -> 300000 | G13: =ROUND(IF($B$13>4400,$B$13*N$13,4400*$N$13)+$E13*N$14,0) -> 35072 | I13: =ROUND(IF($B$13>4400,$B$13*P$13,4400*$N$13)+$E13*P$14,0) -> 35515 | K13: =(I13-G13)/G13 -> 0.01263115876 | M13: Demand ($ per kVa) | N13: =SUM(N17) -> 3.7 | P13: =SUM(P17) -> 3.93 | R13: =(P13-N13)/N13 -> 0.06216216216
C14: 500 | E14: =ROUND((B$13*C14),0) -> 500000 | G14: =ROUND(IF($B$13>4400,$B$13*N$13,4400*$N$13)+$E14*N$14,0) -> 47600 | I14: =ROUND(IF($B$13>4400,$B$13*P$13,4400*$N$13)+$E14*P$14,0) -> 48339 | K14: =(I14-G14)/G14 -> 0.01552521008 | M14: Energy ($ per kWh) | N14: =SUM(N18,N20:N28) -> 0.06263963057 | P14: =SUM(P18,P20:P28) -> 0.064117 | R14: =(P14-N14)/N14 -> 0.02358521946
C15: 700 | E15: =ROUND((B$13*C15),0) -> 700000 | G15: =ROUND(IF($B$13>4400,$B$13*N$13,4400*$N$13)+$E15*N$14,0) -> 60128 | I15: =ROUND(IF($B$13>4400,$B$13*P$13,4400*$N$13)+$E15*P$14,0) -> 61162 | K15: =(I15-G15)/G15 -> 0.01719664715
B17: 2000 | C17: 300 | E17: =ROUND((B$17*C17),0) -> 600000 | G17: =ROUND(IF($B$17>4400,$B$17*N$13,4400*$N$13)+$E17*N$14,0) -> 53864 | I17: =ROUND(IF($B$17>4400,$B$17*P$13,4400*$N$13)+$E17*P$14,0) -> 54750 | K17: =(I17-G17)/G17 -> 0.0164488341 | M17: =+M13 -> Demand ($ per kVa) | N17: 3.7 | P17: 3.93
C18: 500 | E18: =ROUND((B$17*C18),0) -> 1000000 | G18: =ROUND(IF($B$17>4400,$B$17*N$13,4400*$N$13)+$E18*N$14,0) -> 78920 | I18: =ROUND(IF($B$17>4400,$B$17*P$13,4400*$N$13)+$E18*P$14,0) -> 80397 | K18: =(I18-G18)/G18 -> 0.01871515459 | M18: =+M14 -> Energy ($ per kWh) | N18: 0.054413 | P18: 0.057735
C19: 700 | E19: =ROUND((B$17*C19),0) -> 1400000 | G19: =ROUND(IF($B$17>4400,$B$17*N$13,4400*$N$13)+$E19*N$14,0) -> 103975 | I19: =ROUND(IF($B$17>4400,$B$17*P$13,4400*$N$13)+$E19*P$14,0) -> 106044 | K19: =(I19-G19)/G19 -> 0.01989901419
M20: Schedule 95 - PCA | N20: -0.002332369434 | P20: 0
B21: 4000 | C21: 300 | E21: =ROUND((B$21*C21),0) -> 1200000 | G21: =ROUND(IF($B$21>4400,$B$21*N$13,4400*$N$13)+$E21*N$14,0) -> 91448 | I21: =ROUND(IF($B$21>4400,$B$21*P$13,4400*$N$13)+$E21*P$14,0) -> 93220 | K21: =(I21-G21)/G21 -> 0.01937713236 | M21: Schedule 95A - Fed Inc Credit | N21: -0.001316 | P21: =+N21 -> -0.001316
C22: 500 | E22: =ROUND((B$21*C22),0) -> 2000000 | G22: =ROUND(IF($B$21>4400,$B$21*N$13,4400*$N$13)+$E22*N$14,0) -> 141559 | I22: =ROUND(IF($B$21>4400,$B$21*P$13,4400*$N$13)+$E22*P$14,0) -> 144514 | K22: =(I22-G22)/G22 -> 0.02087468829 | M22: Schedule 120 - Conservation | N22: 0.004426 | P22: 0.004426
C23: 700 | E23: =ROUND((B$21*C23),0) -> 2800000 | G23: =ROUND(IF($B$21>4400,$B$21*N$13,4400*$N$13)+$E23*N$14,0) -> 191671 | I23: =ROUND(IF($B$21>4400,$B$21*P$13,4400*$N$13)+$E23*P$14,0) -> 195808 | K23: =(I23-G23)/G23 -> 0.02158385984 | M23: Schedule 129 - Low Income | N23: 0.00056 | P23: 0.00056
M24: Schedule 132 - Merger Credit | N24: -8.5e-05 | P24: -8.5e-05
B25: 6000 | C25: 300 | E25: =ROUND((B$25*C25),0) -> 1800000 | G25: =ROUND(IF($B$25>4400,$B$25*N$13,4400*$N$13)+$E25*N$14,0) -> 134951 | I25: =ROUND(IF($B$25>4400,$B$25*P$13,4400*$N$13)+$E25*P$14,0) -> 138991 | K25: =(I25-G25)/G25 -> 0.02993679187 | M25: Schedule 137 - REC | N25: 0 | P25: 0
C26: 500 | E26: =ROUND((B$25*C26),0) -> 3000000 | G26: =ROUND(IF($B$25>4400,$B$25*N$13,4400*$N$13)+$E26*N$14,0) -> 210119 | I26: =ROUND(IF($B$25>4400,$B$25*P$13,4400*$N$13)+$E26*P$14,0) -> 215931 | K26: =(I26-G26)/G26 -> 0.02766051618 | M26: Schedule 140 - Property Tax | N26: 0.001462 | P26: 0.001462
C27: 700 | E27: =ROUND((B$25*C27),0) -> 4200000 | G27: =ROUND(IF($B$25>4400,$B$25*N$13,4400*$N$13)+$E27*N$14,0) -> 285286 | I27: =ROUND(IF($B$25>4400,$B$25*P$13,4400*$N$13)+$E27*P$14,0) -> 292871 | K27: =(I27-G27)/G27 -> 0.02658735444 | M27: Schedule 141 - ERF - Energy | N27: 0.000356 | P27: 0
M28: Schedule 142 - Decoupling kWh | N28: 0.005156 | P28: 0.001335
B29: 8000 | C29: 300 | E29: =ROUND((B$29*C29),0) -> 2400000 | G29: =ROUND(IF($B$29>4400,$B$29*N$13,4400*$N$13)+$E29*N$14,0) -> 179935 | I29: =ROUND(IF($B$29>4400,$B$29*P$13,4400*$N$13)+$E29*P$14,0) -> 185321 | K29: =(I29-G29)/G29 -> 0.02993303137
C30: 500 | E30: =ROUND((B$29*C30),0) -> 4000000 | G30: =ROUND(IF($B$29>4400,$B$29*N$13,4400*$N$13)+$E30*N$14,0) -> 280159 | I30: =ROUND(IF($B$29>4400,$B$29*P$13,4400*$N$13)+$E30*P$14,0) -> 287908 | K30: =(I30-G30)/G30 -> 0.02765929347
C31: 700 | E31: =ROUND((B$29*C31),0) -> 5600000 | G31: =ROUND(IF($B$29>4400,$B$29*N$13,4400*$N$13)+$E31*N$14,0) -> 380382 | I31: =ROUND(IF($B$29>4400,$B$29*P$13,4400*$N$13)+$E31*P$14,0) -> 390495 | K31: =(I31-G31)/G31 -> 0.02658643153 | M31: Schedule 49 Overall: | N31: 0.06121289491
B33: 10000 | C33: 300 | E33: =ROUND((B$33*C33),0) -> 3000000 | G33: =ROUND(IF($B$33>4400,$B$33*N$13,4400*$N$13)+$E33*N$14,0) -> 224919 | I33: =ROUND(IF($B$33>4400,$B$33*P$13,4400*$N$13)+$E33*P$14,0) -> 231651 | K33: =(I33-G33)/G33 -> 0.02993077508
C34: 500 | E34: =ROUND((B$33*C34),0) -> 5000000 | G34: =ROUND(IF($B$33>4400,$B$33*N$13,4400*$N$13)+$E34*N$14,0) -> 350198 | I34: =ROUND(IF($B$33>4400,$B$33*P$13,4400*$N$13)+$E34*P$14,0) -> 359885 | K34: =(I34-G34)/G34 -> 0.02766149435
C35: 700 | E35: =ROUND((B$33*C35),0) -> 7000000 | G35: =ROUND(IF($B$33>4400,$B$33*N$13,4400*$N$13)+$E35*N$14,0) -> 475477 | I35: =ROUND(IF($B$33>4400,$B$33*P$13,4400*$N$13)+$E35*P$14,0) -> 488119 | K35: =(I35-G35)/G35 -> 0.02658803686
B39: Notes:
B40: 1 Includes Rider Schedules 95A, 95, 120, 129, 132, 137, 140, 141 and 142
